Organisation Name (A),Department (B),Service Cat Label (C ),Purpose of Spend (D),Expenditure CIPFA Sub Group (E ),Supplier (F),Supplier Reference (G),Pay Date (H),Transaction Number (I),Net Amount (J),Grant to VCSE? (K),Charity Number (L),Card Transaction (M),Irrecoverable VAT (N)
Pendle Borough Council,Property Services,Premises Related Expense,Grounds : R & M : Day to Day : Routine,2101,ATKINSON CLEANING SERVICES LTD,A0000010,03/11/2022,EST0329598,150,N,,N,N
Pendle Borough Council,Parks & Recreation Services,Transport Related Expense,Tprt : Repairs : General,3105,BALMERS GM LIMITED,A0000198,17/11/2022,PCO0329737,18.94,N,,N,N
Pendle Borough Council,Parks & Recreation Services,Transport Related Expense,Tprt : Repairs : General,3105,BALMERS GM LIMITED,A0000198,17/11/2022,PCO0329737,22.17,N,,N,N
Pendle Borough Council,Parks & Recreation Services,Transport Related Expense,Tprt : Repairs : General,3105,BALMERS GM LIMITED,A0000198,17/11/2022,PCO0329737,36.89,N,,N,N
Pendle Borough Council,Parks & Recreation Services,Transport Related Expense,Tprt : Repairs : General,3105,BALMERS GM LIMITED,A0000198,17/11/2022,PCO0329737,106.96,N,,N,N
Pendle Borough Council,Parks & Recreation Services,Transport Related Expense,Tprt : Repairs : General,3105,BALMERS GM LIMITED,A0000198,17/11/2022,PCO0329723,185.3,N,,N,N
Pendle Borough Council,Parks & Recreation Services,Transport Related Expense,Tprt : Repairs : General,3105,BALMERS GM LIMITED,A0000198,17/11/2022,PCO0329723,326.95,N,,N,N
Pendle Borough Council,Parks & Recreation Services,Transport Related Expense,Tprt : Repairs : General,3105,BALMERS GM LIMITED,A0000198,17/11/2022,PCO0329723,451.43,N,,N,N
Pendle Borough Council,Operational Services,Premises Related Expense,Bldgs : R & M : Day To Day,2001,BARNES JB LIMITED,A0000202,17/11/2022,OPS0329864,32.51,N,,N,N
Pendle Borough Council,Operational Services,Premises Related Expense,Bldgs : R & M : Day To Day,2001,BARNES JB LIMITED,A0000202,17/11/2022,OPS0329866,90.48,N,,N,N
Pendle Borough Council,Parks & Recreation Services,Premises Related Expense,Grounds : R & M : Day to Day : Routine,2101,BARNES JB LIMITED,A0000202,24/11/2022,PCO0330014,12.09,N,,N,N
Pendle Borough Council,Parks & Recreation Services,Premises Related Expense,Grounds : R & M : Day to Day : Routine,2101,BARNES JB LIMITED,A0000202,24/11/2022,PCO0330013,48.54,N,,N,N
Pendle Borough Council,Parks & Recreation Services,Premises Related Expense,Grounds : R & M : Day to Day : Routine,2101,BARNES JB LIMITED,A0000202,17/11/2022,PCO0329739,10.38,N,,N,N
Pendle Borough Council,Parks & Recreation Services,Premises Related Expense,Grounds : R & M : Day to Day : Routine,2101,BARNES JB LIMITED,A0000202,17/11/2022,PCO0329739,16.23,N,,N,N
Pendle Borough Council,Parks & Recreation Services,Transport Related Expense,Tprt : Repairs : General,3105,BARNES JB LIMITED,A0000202,17/11/2022,PCO0329745,4.65,N,,N,N
Pendle Borough Council,Parks & Recreation Services,Transport Related Expense,Tprt : Repairs : General,3105,BARNES JB LIMITED,A0000202,17/11/2022,PCO0329745,5.95,N,,N,N
Pendle Borough Council,Parks & Recreation Services,Transport Related Expense,Tprt : Repairs : General,3105,BARNES JB LIMITED,A0000202,17/11/2022,PCO0329745,6.66,N,,N,N
Pendle Borough Council,Parks & Recreation Services,Transport Related Expense,Tprt : Repairs : General,3105,BARNES JB LIMITED,A0000202,17/11/2022,PCO0329745,7.5,N,,N,N
Pendle Borough Council,Parks & Recreation Services,Transport Related Expense,Tprt : Repairs : General,3105,BARNES JB LIMITED,A0000202,17/11/2022,PCO0329738,7.92,N,,N,N
Pendle Borough Council,Parks & Recreation Services,Transport Related Expense,Tprt : Repairs : General,3105,BARNES JB LIMITED,A0000202,17/11/2022,PCO0329745,7.95,N,,N,N
Pendle Borough Council,Parks & Recreation Services,Transport Related Expense,Tprt : Repairs : General,3105,BARNES JB LIMITED,A0000202,17/11/2022,PCO0329745,8.2,N,,N,N
Pendle Borough Council,Parks & Recreation Services,Transport Related Expense,Tprt : Repairs : General,3105,BARNES JB LIMITED,A0000202,17/11/2022,PCO0329745,10.82,N,,N,N
Pendle Borough Council,Parks & Recreation Services,Transport Related Expense,Tprt : Repairs : General,3105,BARNES JB LIMITED,A0000202,17/11/2022,PCO0329745,16.66,N,,N,N
Pendle Borough Council,Parks & Recreation Services,Transport Related Expense,Tprt : Repairs : General,3105,BARNES JB LIMITED,A0000202,17/11/2022,PCO0329745,16.66,N,,N,N
Pendle Borough Council,Parks & Recreation Services,Transport Related Expense,Tprt : Repairs : General,3105,BARNES JB LIMITED,A0000202,24/11/2022,PCO0329969,20,N,,N,N
Pendle Borough Council,Parks & Recreation Services,Transport Related Expense,Tprt : Repairs : General,3105,BARNES JB LIMITED,A0000202,17/11/2022,PCO0329745,21.54,N,,N,N
Pendle Borough Council,Parks & Recreation Services,Transport Related Expense,Tprt : Repairs : General,3105,BARNES JB LIMITED,A0000202,24/11/2022,PCO0329970,22.5,N,,N,N
Pendle Borough Council,Parks & Recreation Services,Transport Related Expense,Tprt : Repairs : General,3105,BARNES JB LIMITED,A0000202,17/11/2022,PCO0329745,23.75,N,,N,N
Pendle Borough Council,Parks & Recreation Services,Transport Related Expense,Tprt : Repairs : General,3105,BARNES JB LIMITED,A0000202,17/11/2022,PCO0329745,24.99,N,,N,N
Pendle Borough Council,Parks & Recreation Services,Transport Related Expense,Tprt : Repairs : General,3105,BARNES JB LIMITED,A0000202,17/11/2022,PCO0329745,33.33,N,,N,N
Pendle Borough Council,Parks & Recreation Services,Supplies and Services,Protective Clothing,4201,BARNES JB LIMITED,A0000202,17/11/2022,PCO0329744,61.63,N,,N,N
Pendle Borough Council,Parks & Recreation Services,Supplies and Services,Protective Clothing,4201,BARNES JB LIMITED,A0000202,24/11/2022,PCO0329967,73.67,N,,N,N
Pendle Borough Council,Parks & Recreation Services,Supplies and Services,Protective Clothing,4201,BARNES JB LIMITED,A0000202,17/11/2022,PCO0329744,97.39,N,,N,N
Pendle Borough Council,Parks & Recreation Services,Supplies and Services,Protective Clothing,4201,BARNES JB LIMITED,A0000202,17/11/2022,PCO0329744,135.65,N,,N,N
Pendle Borough Council,Parks & Recreation Services,Transport Related Expense,Diesel Oil,3202,BOC GASES LTD,A0000386,17/11/2022,PCO0329774,5,N,,N,N
Pendle Borough Council,Parks & Recreation Services,Transport Related Expense,Diesel Oil,3202,BOC GASES LTD,A0000386,17/11/2022,PCO0329774,8.35,N,,N,N
Pendle Borough Council,Parks & Recreation Services,Transport Related Expense,Diesel Oil,3202,BOC GASES LTD,A0000386,17/11/2022,PCO0329774,11.1,N,,N,N
Pendle Borough Council,Property Services,Premises Related Expense,Bldgs : R & M : Day To Day,2001,GEORGE BOOCOCK DECORATORS LTD,A0000427,10/11/2022,EST0329767,1252,N,,N,N
Pendle Borough Council,Property Services,Premises Related Expense,Bldgs : R & M : Day To Day,2001,BARROWFORD SAFE & LOCK & BB LOCKSMITHS,A0000510,24/11/2022,EST0330070,77,N,,N,N
Pendle Borough Council,Operational Services,Premises Related Expense,Bldgs : R & M : Day To Day,2001,BARROWFORD SAFE & LOCK & BB LOCKSMITHS,A0000510,17/11/2022,OPS0329865,10.59,N,,N,N
Pendle Borough Council,Financial Services,Supplies and Services,Subscriptions & Donations,4706,CIPFA,A0000563,10/11/2022,AAS0329781,46.3,N,,N,N
Pendle Borough Council,Financial Services,Supplies and Services,Subscriptions & Donations,4706,CIPFA,A0000563,10/11/2022,AAS0329782,175.5,N,,N,N
Pendle Borough Council,Financial Services,Supplies and Services,Subscriptions & Donations,4706,CIPFA,A0000563,10/11/2022,AAS0329783,362,N,,N,N
Pendle Borough Council,Engineering & Special Projects,Premises Related Expense,Bldgs : R & M : Abnormal,2002,MARTIN COLLINS JOINERY & GLAZING,A0000623,10/11/2022,HED0329659,90,N,,N,N
Pendle Borough Council,Engineering & Special Projects,Transfer Payments,Storage & Homelessness prevention,6104,CAVALIER TAXIS,A0000638,10/11/2022,HED0329715,360,N,,N,N
Pendle Borough Council,Engineering & Special Projects,Supplies and Services,Other Expenses,4705,CARRO-STEP PRINT SERVICES,A0000853,03/11/2022,HED0329519,345,N,,N,N
Pendle Borough Council,Property Services,Premises Related Expense,Bldgs : R & M : Day To Day,2001,J DRIVER LTD,A0000884,10/11/2022,EST0329772,1285.62,N,,N,N
Pendle Borough Council,Property Services,Premises Related Expense,Bldgs : R & M : Day To Day,2001,J DRIVER LTD,A0000884,10/11/2022,EST0329772,1203.16,N,,N,N
Pendle Borough Council,Property Services,Premises Related Expense,Bldgs : R & M : Day To Day,2001,J DRIVER LTD,A0000884,10/11/2022,EST0329772,126.44,N,,N,N
Pendle Borough Council,Property Services,Premises Related Expense,Bldgs : R & M : Day To Day,2001,J DRIVER LTD,A0000884,10/11/2022,EST0329772,252.38,N,,N,N
Pendle Borough Council,Property Services,Premises Related Expense,Bldgs : R & M : Day To Day,2001,J DRIVER LTD,A0000884,10/11/2022,EST0329772,829.76,N,,N,N
Pendle Borough Council,Property Services,Capital Costs,Capital : Payments,CD14,J DRIVER LTD,A0000884,10/11/2022,EST0329773,1874,N,,N,N
Pendle Borough Council,Parks & Recreation Services,Supplies and Services,Protective Clothing,4201,ENGINEERING & FOUNDRY SUPPLIES,A0001002,17/11/2022,PCO0329904,18.5,N,,N,N
Pendle Borough Council,Parks & Recreation Services,Supplies and Services,Protective Clothing,4201,ENGINEERING & FOUNDRY SUPPLIES,A0001002,24/11/2022,PCO0330016,28.5,N,,N,N
Pendle Borough Council,Parks & Recreation Services,Supplies and Services,Protective Clothing,4201,ENGINEERING & FOUNDRY SUPPLIES,A0001002,17/11/2022,PCO0329905,42.13,N,,N,N
Pendle Borough Council,Parks & Recreation Services,Supplies and Services,Protective Clothing,4201,ENGINEERING & FOUNDRY SUPPLIES,A0001002,24/11/2022,PCO0330010,45.57,N,,N,N
Pendle Borough Council,Parks & Recreation Services,Supplies and Services,Protective Clothing,4201,ENGINEERING & FOUNDRY SUPPLIES,A0001002,17/11/2022,PCO0329906,57,N,,N,N
Pendle Borough Council,Parks & Recreation Services,Supplies and Services,Protective Clothing,4201,ENGINEERING & FOUNDRY SUPPLIES,A0001002,24/11/2022,PCO0330011,62.4,N,,N,N
Pendle Borough Council,Parks & Recreation Services,Supplies and Services,Protective Clothing,4201,ENGINEERING & FOUNDRY SUPPLIES,A0001002,17/11/2022,PCO0329907,88.12,N,,N,N
Pendle Borough Council,Parks & Recreation Services,Supplies and Services,Protective Clothing,4201,ENGINEERING & FOUNDRY SUPPLIES,A0001002,17/11/2022,PCO0329907,91.7,N,,N,N
Pendle Borough Council,Planning & Building Control,Supplies and Services,Protective Clothing,4201,ENGINEERING & FOUNDRY SUPPLIES,A0001002,17/11/2022,PBC0329919,63.1,N,,N,N
Pendle Borough Council,Operational Services,Supplies and Services,Other Expenses,4705,ENGINEERING & FOUNDRY SUPPLIES,A0001002,17/11/2022,OPS4006614,-22.93,N,,N,N
Pendle Borough Council,Operational Services,Supplies and Services,Other Expenses,4705,ENGINEERING & FOUNDRY SUPPLIES,A0001002,17/11/2022,OPS0329903,30.95,N,,N,N
Pendle Borough Council,Operational Services,,Stock : Purchases,PJ01,ENGINEERING & FOUNDRY SUPPLIES,A0001002,24/11/2022,OPS0329964,54.16,N,,N,N
Pendle Borough Council,Operational Services,Transport Related Expense,Tprt : Repairs : General,3105,FREIGHT TRANSPORT ASSOCIATION,A0001124,10/11/2022,OPS0329651,42,N,,N,N
Pendle Borough Council,Operational Services,Transport Related Expense,Tprt : Repairs : General,3105,FREIGHT TRANSPORT ASSOCIATION,A0001124,03/11/2022,OPS0329540,45.95,N,,N,N
Pendle Borough Council,Parks & Recreation Services,Transport Related Expense,Tprt : Repairs : General,3105,GIBSONS GARDEN MACHINERY LTD,A0001201,17/11/2022,PCO0329778,124.91,N,,N,N
Pendle Borough Council,Parks & Recreation Services,Transport Related Expense,Tprt : Repairs : General,3105,GIBSONS GARDEN MACHINERY LTD,A0001201,17/11/2022,PCO0329778,124.89,N,,N,N
Pendle Borough Council,Parks & Recreation Services,Transport Related Expense,Tprt : Repairs : General,3105,GIBSONS GARDEN MACHINERY LTD,A0001201,17/11/2022,PCO0329780,543.48,N,,N,N
Pendle Borough Council,Parks & Recreation Services,Transport Related Expense,Tprt : Repairs : General,3105,GIBSONS GARDEN MACHINERY LTD,A0001201,17/11/2022,PCO0329778,124.91,N,,N,N
Pendle Borough Council,Parks & Recreation Services,Transport Related Expense,Tprt : Repairs : General,3105,GIBSONS GARDEN MACHINERY LTD,A0001201,17/11/2022,PCO0329779,296.23,N,,N,N
Pendle Borough Council,Operational Services,Supplies and Services,Telephones : Direct,4502,FGH GUARDHALL SECURITY LIMITED,A0001235,24/11/2022,OPS0330022,1500,N,,N,N
Pendle Borough Council,Operational Services,Supplies and Services,EFM Materials,4004,JEWSON LIMITED,A0001323,17/11/2022,OPS0329902,25.16,N,,N,N
Pendle Borough Council,Operational Services,Premises Related Expense,Bldgs : R & M : Day To Day,2001,J HARGREAVES,A0001359,24/11/2022,OPS0330038,96,N,,N,N
Pendle Borough Council,Operational Services,Premises Related Expense,Grounds : R & M : Day to Day : Routine,2101,J HARGREAVES,A0001359,24/11/2022,OPS0330039,25,N,,N,N
Pendle Borough Council,Parks & Recreation Services,Premises Related Expense,Bldgs : R & M : Day To Day,2001,LANLEE SUPPLIES LIMITED,A0001672,03/11/2022,PCO0329566,39.72,N,,N,N
Pendle Borough Council,Parks & Recreation Services,Premises Related Expense,Bldgs : R & M : Day To Day,2001,LANLEE SUPPLIES LIMITED,A0001672,03/11/2022,PCO0329565,46.73,N,,N,N
Pendle Borough Council,Parks & Recreation Services,Transport Related Expense,Tprt : Repairs : General,3105,DICK LEIGH,A0001675,17/11/2022,PCO0329776,23.29,N,,N,N
Pendle Borough Council,Parks & Recreation Services,Transport Related Expense,Tprt : Repairs : General,3105,DICK LEIGH,A0001675,17/11/2022,PCO0329776,39.41,N,,N,N
Pendle Borough Council,Parks & Recreation Services,Transport Related Expense,Tprt : Repairs : General,3105,DICK LEIGH,A0001675,17/11/2022,PCO0329776,42.48,N,,N,N
Pendle Borough Council,Parks & Recreation Services,Transport Related Expense,Tprt : Repairs : General,3105,DICK LEIGH,A0001675,17/11/2022,PCO0329776,43.21,N,,N,N
Pendle Borough Council,Parks & Recreation Services,Transport Related Expense,Tprt : Repairs : General,3105,DICK LEIGH,A0001675,17/11/2022,PCO0329776,50.89,N,,N,N
Pendle Borough Council,Parks & Recreation Services,Transport Related Expense,Tprt : Repairs : General,3105,DICK LEIGH,A0001675,17/11/2022,PCO0329776,117.18,N,,N,N
Pendle Borough Council,Parks & Recreation Services,Transport Related Expense,Tprt : Repairs : General,3105,DICK LEIGH,A0001675,24/11/2022,PCO0330034,253.29,N,,N,N
Pendle Borough Council,Parks & Recreation Services,Transport Related Expense,Tprt : Repairs : General,3105,DICK LEIGH,A0001675,17/11/2022,PCO0329894,253.34,N,,N,N
Pendle Borough Council,Parks & Recreation Services,Transport Related Expense,Tprt : Repairs : General,3105,DICK LEIGH,A0001675,17/11/2022,PCO0329894,500,N,,N,N
Pendle Borough Council,Parks & Recreation Services,Transport Related Expense,Tprt : Repairs : General,3105,DICK LEIGH,A0001675,17/11/2022,PCO0329893,171.36,N,,N,N
Pendle Borough Council,Parks & Recreation Services,Transport Related Expense,Tprt : Repairs : General,3105,DICK LEIGH,A0001675,17/11/2022,PCO0329896,90.2,N,,N,N
Pendle Borough Council,Parks & Recreation Services,Transport Related Expense,Tprt : Repairs : General,3105,DICK LEIGH,A0001675,17/11/2022,PCO0329895,120.69,N,,N,N
Pendle Borough Council,Parks & Recreation Services,Transport Related Expense,Diesel Oil,3202,DICK LEIGH,A0001675,17/11/2022,PCO0329776,60,N,,N,N
Pendle Borough Council,Engineering & Special Projects,Premises Related Expense,Grounds : R & M : Day to Day : Routine,2101,LANCASHIRE COUNTY COUNCIL,A0001690,17/11/2022,HED0329931,500,N,,N,N
Pendle Borough Council,Engineering & Special Projects,Premises Related Expense,Grounds : R & M : Day to Day : Routine,2101,LANCASHIRE COUNTY COUNCIL,A0001690,03/11/2022,HED0329579,160,N,,N,N
Pendle Borough Council,Engineering & Special Projects,Supplies and Services,Search Fees,4404,LANCASHIRE COUNTY COUNCIL,A0001690,17/11/2022,HED0329885,328.6,N,,N,N
Pendle Borough Council,Engineering & Special Projects,Supplies and Services,Search Fees,4404,LANCASHIRE COUNTY COUNCIL,A0001690,03/11/2022,HED0329535,356.5,N,,N,N
Pendle Borough Council,Human Resources,Indirect Employee Expenses,Training,1211,LEEDS BECKETT UNIVERSITY,A0001706,17/11/2022,PER0329870,5833.8,N,,N,N
Pendle Borough Council,Human Resources,Indirect Employee Expenses,Training,1211,LEEDS BECKETT UNIVERSITY,A0001706,17/11/2022,PER0329872,4444,N,,N,N
Pendle Borough Council,Human Resources,Indirect Employee Expenses,Training,1211,LEEDS BECKETT UNIVERSITY,A0001706,17/11/2022,PER0329879,3889,N,,N,N
Pendle Borough Council,Engineering & Special Projects,Premises Related Expense,Bldgs : R & M : Day To Day,2001,LIMELIGHT SIGNS LIMITED,A0001796,10/11/2022,HED0329732,66.75,N,,N,N
Pendle Borough Council,Engineering & Special Projects,Premises Related Expense,Bldgs : R & M : Day To Day,2001,LIMELIGHT SIGNS LIMITED,A0001796,10/11/2022,HED0329732,90.22,N,,N,N
Pendle Borough Council,Engineering & Special Projects,Supplies and Services,Other Expenses,4705,MONK OF COLNE LTD,A0001828,03/11/2022,HED0329604,14915.53,N,,N,N
Pendle Borough Council,Engineering & Special Projects,Capital Costs,Capital : Payments,cd14,NELSON & COLNE COLLEGE,A0001974,17/11/2022,HED0329803,73491.25,N,,N,N
Pendle Borough Council,Property Services,Premises Related Expense,Water & Sewerage,2501,WATER PLUS LIMITED,A0001986,10/11/2022,EST0329756,112.92,N,,N,N
Pendle Borough Council,Property Services,Premises Related Expense,Water & Sewerage,2501,WATER PLUS LIMITED,A0001986,10/11/2022,EST0329757,38.28,N,,N,N
Pendle Borough Council,Property Services,Premises Related Expense,Water & Sewerage,2501,WATER PLUS LIMITED,A0001986,03/11/2022,EST0329597,45.97,N,,N,N
Pendle Borough Council,Property Services,Premises Related Expense,Water & Sewerage,2501,WATER PLUS LIMITED,A0001986,10/11/2022,EST0329765,20.61,N,,N,N
Pendle Borough Council,Property Services,Premises Related Expense,Water & Sewerage,2501,WATER PLUS LIMITED,A0001986,10/11/2022,EST0329751,74.75,N,,N,N
Pendle Borough Council,Property Services,Premises Related Expense,Water & Sewerage,2501,WATER PLUS LIMITED,A0001986,24/11/2022,EST0330073,89.17,N,,N,N
Pendle Borough Council,Property Services,Premises Related Expense,Water & Sewerage,2501,WATER PLUS LIMITED,A0001986,10/11/2022,EST0329758,26.32,N,,N,N
Pendle Borough Council,Property Services,Premises Related Expense,Water & Sewerage,2501,WATER PLUS LIMITED,A0001986,10/11/2022,EST0329754,22.39,N,,N,N
Pendle Borough Council,Property Services,Premises Related Expense,Water & Sewerage,2501,WATER PLUS LIMITED,A0001986,03/11/2022,EST0329589,74.57,N,,N,N
Pendle Borough Council,Property Services,Premises Related Expense,Water & Sewerage,2501,WATER PLUS LIMITED,A0001986,10/11/2022,EST0329753,8.58,N,,N,N
Pendle Borough Council,Property Services,Premises Related Expense,Water & Sewerage,2501,WATER PLUS LIMITED,A0001986,24/11/2022,EST0330072,187.9,N,,N,N
Pendle Borough Council,Property Services,Premises Related Expense,Water & Sewerage,2501,WATER PLUS LIMITED,A0001986,10/11/2022,EST0329752,343.34,N,,N,N
Pendle Borough Council,Property Services,Premises Related Expense,Water & Sewerage,2501,WATER PLUS LIMITED,A0001986,10/11/2022,EST0329761,44.75,N,,N,N
Pendle Borough Council,Property Services,Premises Related Expense,Water & Sewerage,2501,WATER PLUS LIMITED,A0001986,03/11/2022,EST0329596,61.94,N,,N,N
Pendle Borough Council,Property Services,Premises Related Expense,Water & Sewerage,2501,WATER PLUS LIMITED,A0001986,10/11/2022,EST0329771,196,N,,N,N
Pendle Borough Council,Parks & Recreation Services,Premises Related Expense,Cleaning Materials,2605,OPTION HYGIENE LIMITED,A0002063,17/11/2022,PCO0329878,3.1,N,,N,N
Pendle Borough Council,Parks & Recreation Services,Premises Related Expense,Cleaning Materials,2605,OPTION HYGIENE LIMITED,A0002063,17/11/2022,PCO0329878,3.76,N,,N,N
Pendle Borough Council,Parks & Recreation Services,Premises Related Expense,Cleaning Materials,2605,OPTION HYGIENE LIMITED,A0002063,17/11/2022,PCO0329878,5.65,N,,N,N
Pendle Borough Council,Parks & Recreation Services,Premises Related Expense,Cleaning Materials,2605,OPTION HYGIENE LIMITED,A0002063,17/11/2022,PCO0329878,8.26,N,,N,N
Pendle Borough Council,Parks & Recreation Services,Premises Related Expense,Cleaning Materials,2605,OPTION HYGIENE LIMITED,A0002063,03/11/2022,PCO0329571,24.69,N,,N,N
Pendle Borough Council,Parks & Recreation Services,Premises Related Expense,Cleaning Materials,2605,OPTION HYGIENE LIMITED,A0002063,17/11/2022,PCO0329878,42.99,N,,N,N
Pendle Borough Council,Engineering & Special Projects,Supplies and Services,Printing & Stationery,4301,ROYAL MAIL GROUP LIMITED,A0002281,17/11/2022,HED0329839,100.86,N,,N,N
Pendle Borough Council,Engineering & Special Projects,Supplies and Services,Postages,4501,ROYAL MAIL GROUP LIMITED,A0002281,03/11/2022,HED0329522,2.24,N,,N,N
Pendle Borough Council,Engineering & Special Projects,Supplies and Services,Postages,4501,ROYAL MAIL GROUP LIMITED,A0002281,24/11/2022,HED0329994,116.84,N,,N,N
Pendle Borough Council,Engineering & Special Projects,Supplies and Services,Postages,4501,ROYAL MAIL GROUP LIMITED,A0002281,17/11/2022,HED0329825,178.29,N,,N,N
Pendle Borough Council,Engineering & Special Projects,Supplies and Services,Postages,4501,ROYAL MAIL GROUP LIMITED,A0002281,03/11/2022,HED0329522,325.09,N,,N,N
Pendle Borough Council,Engineering & Special Projects,Supplies and Services,Postages,4501,ROYAL MAIL GROUP LIMITED,A0002281,17/11/2022,HED0329825,26.17,N,,N,N
Pendle Borough Council,Engineering & Special Projects,Supplies and Services,Postages,4501,ROYAL MAIL GROUP LIMITED,A0002281,03/11/2022,HED0329522,71.27,N,,N,N
Pendle Borough Council,Engineering & Special Projects,Supplies and Services,Postages,4501,ROYAL MAIL GROUP LIMITED,A0002281,24/11/2022,HED0329994,92.14,N,,N,N
Pendle Borough Council,Engineering & Special Projects,Supplies and Services,Postages,4501,ROYAL MAIL GROUP LIMITED,A0002281,24/11/2022,HED0329994,3.31,N,,N,N
Pendle Borough Council,Engineering & Special Projects,Supplies and Services,Postages,4501,ROYAL MAIL GROUP LIMITED,A0002281,17/11/2022,HED0329825,10.28,N,,N,N
Pendle Borough Council,Engineering & Special Projects,Supplies and Services,Postages,4501,ROYAL MAIL GROUP LIMITED,A0002281,24/11/2022,HED0329994,11.86,N,,N,N
Pendle Borough Council,Engineering & Special Projects,Supplies and Services,Postages,4501,ROYAL MAIL GROUP LIMITED,A0002281,03/11/2022,HED0329522,12.2,N,,N,N
Pendle Borough Council,Engineering & Special Projects,Supplies and Services,Postages,4501,ROYAL MAIL GROUP LIMITED,A0002281,24/11/2022,HED0329994,3.67,N,,N,N
Pendle Borough Council,Engineering & Special Projects,Supplies and Services,Postages,4501,ROYAL MAIL GROUP LIMITED,A0002281,03/11/2022,HED0329522,6.19,N,,N,N
Pendle Borough Council,Engineering & Special Projects,Supplies and Services,Postages,4501,ROYAL MAIL GROUP LIMITED,A0002281,17/11/2022,HED0329825,7.26,N,,N,N
Pendle Borough Council,Engineering & Special Projects,Supplies and Services,Postages,4501,ROYAL MAIL GROUP LIMITED,A0002281,24/11/2022,HED0329994,3.95,N,,N,N
Pendle Borough Council,Engineering & Special Projects,Supplies and Services,Postages,4501,ROYAL MAIL GROUP LIMITED,A0002281,17/11/2022,HED0329825,9.61,N,,N,N
Pendle Borough Council,Engineering & Special Projects,Supplies and Services,Postages,4501,ROYAL MAIL GROUP LIMITED,A0002281,24/11/2022,HED0329994,10.79,N,,N,N
Pendle Borough Council,Engineering & Special Projects,Supplies and Services,Postages,4501,ROYAL MAIL GROUP LIMITED,A0002281,03/11/2022,HED0329522,13.44,N,,N,N
Pendle Borough Council,Engineering & Special Projects,Supplies and Services,Postages,4501,ROYAL MAIL GROUP LIMITED,A0002281,03/11/2022,HED0329522,13.78,N,,N,N
Pendle Borough Council,Engineering & Special Projects,Supplies and Services,Postages,4501,ROYAL MAIL GROUP LIMITED,A0002281,24/11/2022,HED0329994,33.06,N,,N,N
Pendle Borough Council,Engineering & Special Projects,Supplies and Services,Postages,4501,ROYAL MAIL GROUP LIMITED,A0002281,17/11/2022,HED0329825,102.69,N,,N,N
Pendle Borough Council,Engineering & Special Projects,Supplies and Services,Postages,4501,ROYAL MAIL GROUP LIMITED,A0002281,24/11/2022,HED0329994,118.49,N,,N,N
Pendle Borough Council,Engineering & Special Projects,Supplies and Services,Postages,4501,ROYAL MAIL GROUP LIMITED,A0002281,03/11/2022,HED0329522,121.67,N,,N,N
Pendle Borough Council,Engineering & Special Projects,Supplies and Services,Postages,4501,ROYAL MAIL GROUP LIMITED,A0002281,24/11/2022,HED0329994,57.28,N,,N,N
Pendle Borough Council,Engineering & Special Projects,Supplies and Services,Postages,4501,ROYAL MAIL GROUP LIMITED,A0002281,17/11/2022,HED0329825,80.27,N,,N,N
Pendle Borough Council,Engineering & Special Projects,Supplies and Services,Postages,4501,ROYAL MAIL GROUP LIMITED,A0002281,03/11/2022,HED0329522,110.14,N,,N,N
Pendle Borough Council,Engineering & Special Projects,Supplies and Services,Postages,4501,ROYAL MAIL GROUP LIMITED,A0002281,03/11/2022,HED0329522,5.94,N,,N,N
Pendle Borough Council,Engineering & Special Projects,Supplies and Services,Postages,4501,ROYAL MAIL GROUP LIMITED,A0002281,17/11/2022,HED0329825,23.36,N,,N,N
Pendle Borough Council,Engineering & Special Projects,Supplies and Services,Postages,4501,ROYAL MAIL GROUP LIMITED,A0002281,24/11/2022,HED0329994,41.08,N,,N,N
Pendle Borough Council,Engineering & Special Projects,Supplies and Services,Postages,4501,ROYAL MAIL GROUP LIMITED,A0002281,24/11/2022,HED0329994,2.24,N,,N,N
Pendle Borough Council,Engineering & Special Projects,Supplies and Services,Postages,4501,ROYAL MAIL GROUP LIMITED,A0002281,03/11/2022,HED0329522,17.92,N,,N,N
Pendle Borough Council,Engineering & Special Projects,Supplies and Services,Postages,4501,ROYAL MAIL GROUP LIMITED,A0002281,17/11/2022,HED0329825,20.16,N,,N,N
Pendle Borough Council,Engineering & Special Projects,Supplies and Services,Postages,4501,ROYAL MAIL GROUP LIMITED,A0002281,24/11/2022,HED0329994,88.75,N,,N,N
Pendle Borough Council,Engineering & Special Projects,Supplies and Services,Postages,4501,ROYAL MAIL GROUP LIMITED,A0002281,03/11/2022,HED0329522,166.99,N,,N,N
Pendle Borough Council,Engineering & Special Projects,Supplies and Services,Postages,4501,ROYAL MAIL GROUP LIMITED,A0002281,17/11/2022,HED0329825,250.91,N,,N,N
Pendle Borough Council,Engineering & Special Projects,Supplies and Services,Postages,4501,ROYAL MAIL GROUP LIMITED,A0002281,24/11/2022,HED0329994,72.87,N,,N,N
Pendle Borough Council,Engineering & Special Projects,Supplies and Services,Postages,4501,ROYAL MAIL GROUP LIMITED,A0002281,03/11/2022,HED0329522,142.77,N,,N,N
Pendle Borough Council,Engineering & Special Projects,Supplies and Services,Postages,4501,ROYAL MAIL GROUP LIMITED,A0002281,17/11/2022,HED0329825,145.63,N,,N,N
Pendle Borough Council,Engineering & Special Projects,Supplies and Services,Postages,4501,ROYAL MAIL GROUP LIMITED,A0002281,17/11/2022,HED0329825,170.25,N,,N,N
Pendle Borough Council,Engineering & Special Projects,Supplies and Services,Postages,4501,ROYAL MAIL GROUP LIMITED,A0002281,03/11/2022,HED0329522,38.4,N,,N,N
Pendle Borough Council,Engineering & Special Projects,Supplies and Services,Printing & Stationery,4301,SHAW & SONS LTD,A0002414,10/11/2022,HED0329574,57.8,N,,N,N
Pendle Borough Council,Operational Services,Transport Related Expense,Tprt : Annual Hire Charge,3601,STANLEY BROTHERS (TIPPERS) LTD,A0002422,10/11/2022,OPS0329676,2310,N,,N,N
Pendle Borough Council,Engineering & Special Projects,Supplies and Services,EFM : Other Equipment,4003,STANLEY HOUSE VETERINARY GROUP,A0002423,10/11/2022,HED0329603,350,N,,N,N
Pendle Borough Council,Parks & Recreation Services,Premises Related Expense,Grounds : R & M : Day to Day : Routine,2101,STEVENSON MEMORIALS,A0002426,24/11/2022,PCO0330035,162.5,N,,N,N
Pendle Borough Council,Parks & Recreation Services,Transport Related Expense,Tprt : Repairs : General,3105,SPALDINGS (UK) LTD,A0002537,17/11/2022,PCO0329874,190,N,,N,N
Pendle Borough Council,Parks & Recreation Services,Supplies and Services,Protective Clothing,4201,SPALDINGS (UK) LTD,A0002537,17/11/2022,PCO4006628,-333.08,N,,N,N
Pendle Borough Council,Parks & Recreation Services,Supplies and Services,Protective Clothing,4201,SPALDINGS (UK) LTD,A0002537,17/11/2022,PCO4006629,-123,N,,N,N
Pendle Borough Council,Parks & Recreation Services,Supplies and Services,Protective Clothing,4201,SPALDINGS (UK) LTD,A0002537,17/11/2022,PCO0329869,44,N,,N,N
Pendle Borough Council,Parks & Recreation Services,Supplies and Services,Protective Clothing,4201,SPALDINGS (UK) LTD,A0002537,17/11/2022,PCO0329873,44,N,,N,N
Pendle Borough Council,Parks & Recreation Services,Supplies and Services,Protective Clothing,4201,SPALDINGS (UK) LTD,A0002537,17/11/2022,PCO0329873,52.08,N,,N,N
Pendle Borough Council,Parks & Recreation Services,Supplies and Services,Protective Clothing,4201,SPALDINGS (UK) LTD,A0002537,17/11/2022,PCO0329869,79,N,,N,N
Pendle Borough Council,Parks & Recreation Services,Supplies and Services,Protective Clothing,4201,SPALDINGS (UK) LTD,A0002537,17/11/2022,PCO0329873,80,N,,N,N
Pendle Borough Council,Parks & Recreation Services,Supplies and Services,Protective Clothing,4201,SPALDINGS (UK) LTD,A0002537,17/11/2022,PCO0329873,114,N,,N,N
Pendle Borough Council,Parks & Recreation Services,Supplies and Services,Protective Clothing,4201,SPALDINGS (UK) LTD,A0002537,17/11/2022,PCO0329873,237,N,,N,N
Pendle Borough Council,Parks & Recreation Services,Premises Related Expense,Bldgs : R & M : Day To Day,2001,ROBERTSON MEMORIALS,A0002590,03/11/2022,PCO0329568,67.5,N,,N,N
Pendle Borough Council,Parks & Recreation Services,Premises Related Expense,Grounds : R & M : Day to Day : Routine,2101,ROBERTSON MEMORIALS,A0002590,03/11/2022,PCO0329569,186.27,N,,N,N
Pendle Borough Council,Operational Services,Supplies and Services,Other Expenses,4705,TRISTAR PRINTERS LTD,A0002731,03/11/2022,OPS0329541,3357,N,,N,N
Pendle Borough Council,Parks & Recreation Services,Supplies and Services,Other Expenses,4705,TRISTAR PRINTERS LTD,A0002731,17/11/2022,PCO0329882,125,N,,N,N
Pendle Borough Council,Operational Services,Agency Staff,Emp : Agency Wages,1004,DHRB LIMITED T/A DRIVER HIRE (45680),A0003556,17/11/2022,OPS0329841,141.75,N,,N,N
Pendle Borough Council,Operational Services,Agency Staff,Emp : Agency Wages,1004,DHRB LIMITED T/A DRIVER HIRE (45680),A0003556,24/11/2022,OPS0330023,647.51,N,,N,N
Pendle Borough Council,Parks & Recreation Services,Agency Staff,Emp : Agency Wages,1004,DHRB LIMITED T/A DRIVER HIRE (45680),A0003556,17/11/2022,PCO0329777,275.63,N,,N,N
Pendle Borough Council,Operational Services,Agency Staff,Emp : Agency Wages,1004,DHRB LIMITED T/A DRIVER HIRE (45680),A0003556,17/11/2022,OPS0329841,567,N,,N,N
Pendle Borough Council,Engineering & Special Projects,Supplies and Services,Other Expenses,4705,ELLISON PRINTING,A0004685,10/11/2022,HED0329575,3498,N,,N,N
Pendle Borough Council,Parks & Recreation Services,Premises Related Expense,Grounds : R & M : Day to Day : Routine,2101,WICKSTEED LEISURE LTD,A0004748,24/11/2022,PCO0330012,7835.52,N,,N,N
Pendle Borough Council,Engineering & Special Projects,Indirect Employee Expenses,Staff Refreshments,1261,PHILIP SANDERSON,A0006611,10/11/2022,HED0329657,20.23,N,,N,N
Pendle Borough Council,Engineering & Special Projects,Supplies and Services,Hospitality,4611,PHILIP SANDERSON,A0006611,10/11/2022,HED0329657,20.23,N,,N,N
Pendle Borough Council,Property Services,Capital Costs,Capital : Payments,CD14,SANDEROOF LTD,A0009837,03/11/2022,EST0329609,1200,N,,N,N
Pendle Borough Council,Engineering & Special Projects,Supplies and Services,Other Expenses,4705,LHT ENTERPRISES LIMITED,A0010288,03/11/2022,HED0329518,450,N,,N,N
Pendle Borough Council,Engineering & Special Projects,Premises Related Expense,Bldgs : R & M : Abnormal,2002,CPC PROP & GARDENING SERV LTD,A0011770,24/11/2022,HED0329988,60,N,,N,N
Pendle Borough Council,Engineering & Special Projects,Premises Related Expense,Bldgs : R & M : Abnormal,2002,CPC PROP & GARDENING SERV LTD,A0011770,24/11/2022,HED0329988,160,N,,N,N
Pendle Borough Council,Parks & Recreation Services,Agency Staff,Emp : Agency Wages,1004,LANDSCAPE ENGINEERING LTD,A0013135,03/11/2022,PCO0329561,3391.2,N,,N,N
Pendle Borough Council,Parks & Recreation Services,Agency Staff,Emp : Agency Wages,1004,LANDSCAPE ENGINEERING LTD,A0013135,03/11/2022,PCO0329560,5518.8,N,,N,N
Pendle Borough Council,Parks & Recreation Services,Supplies and Services,Sub-Contractors,4007,LANDSCAPE ENGINEERING LTD,A0013135,03/11/2022,PCO0329562,3402.16,N,,N,N
Pendle Borough Council,Parks & Recreation Services,Supplies and Services,Sub-Contractors,4007,LANDSCAPE ENGINEERING LTD,A0013135,03/11/2022,PCO0329563,5222.12,N,,N,N
Pendle Borough Council,Operational Services,Supplies and Services,Sub-Contractors,4007,ORCHARD RECYCLING SERVICE,A0015803,24/11/2022,OPS0330020,2356.2,N,,N,N
Pendle Borough Council,Operational Services,Supplies and Services,Sub-Contractors,4007,ORCHARD RECYCLING SERVICE,A0015803,17/11/2022,OPS0329898,2394.7,N,,N,N
Pendle Borough Council,Operational Services,Supplies and Services,Sub-Contractors,4007,ORCHARD RECYCLING SERVICE,A0015803,03/11/2022,OPS0329542,2425.5,N,,N,N
Pendle Borough Council,Operational Services,Supplies and Services,Sub-Contractors,4007,ORCHARD RECYCLING SERVICE,A0015803,10/11/2022,OPS0329673,2456.3,N,,N,N
Pendle Borough Council,Operational Services,Supplies and Services,Sub-Contractors,4007,ASPEN VALLEY KENNELS & CATTERY,A0022106,10/11/2022,OPS0329672,790,N,,N,N
Pendle Borough Council,Operational Services,Supplies and Services,Other Expenses,4705,ASPEN VALLEY KENNELS & CATTERY,A0022106,10/11/2022,OPS0329672,987.6,N,,N,N
Pendle Borough Council,Engineering & Special Projects,Supplies and Services,Other Expenses,4705,GRADKO INTERNATIONAL LTD,A0025806,17/11/2022,HED0329838,201.6,N,,N,N
Pendle Borough Council,Operational Services,Indirect Employee Expenses,Training,1211,SPECIALIST TRAINING & CONSULTANCY SERVICES LTD,A0026831,10/11/2022,OPS0329677,113.75,N,,N,N
Pendle Borough Council,Operational Services,Indirect Employee Expenses,Training,1211,SPECIALIST TRAINING & CONSULTANCY SERVICES LTD,A0026831,10/11/2022,OPS0329677,595,N,,N,N
Pendle Borough Council,Engineering & Special Projects,Premises Related Expense,Bldgs : R & M : Day To Day,2001,LITE,A0040032,24/11/2022,HED0330050,1475,N,,N,N
Pendle Borough Council,Engineering & Special Projects,Supplies and Services,EFM : Photocopiers,4001,CANON (UK) LIMITED,A0040400,24/11/2022,HED0330004,1.07,N,,N,N
Pendle Borough Council,Engineering & Special Projects,Supplies and Services,EFM : Photocopiers,4001,CANON (UK) LIMITED,A0040400,24/11/2022,HED0330004,0.09,N,,N,N
Pendle Borough Council,Engineering & Special Projects,Supplies and Services,EFM : Photocopiers,4001,CANON (UK) LIMITED,A0040400,24/11/2022,HED0330005,549.73,N,,N,N
Pendle Borough Council,Engineering & Special Projects,Supplies and Services,EFM : Photocopiers,4001,CANON (UK) LIMITED,A0040400,24/11/2022,HED0330005,0.05,N,,N,N
Pendle Borough Council,Engineering & Special Projects,Supplies and Services,EFM : Photocopiers,4001,CANON (UK) LIMITED,A0040400,24/11/2022,HED0330004,57.91,N,,N,N
Pendle Borough Council,Engineering & Special Projects,Supplies and Services,EFM : Photocopiers,4001,CANON (UK) LIMITED,A0040400,24/11/2022,HED0330007,32.49,N,,N,N
Pendle Borough Council,Engineering & Special Projects,Supplies and Services,EFM : Photocopiers,4001,CANON (UK) LIMITED,A0040400,24/11/2022,HED0329999,192.1,N,,N,N
Pendle Borough Council,Engineering & Special Projects,Supplies and Services,EFM : Photocopiers,4001,CANON (UK) LIMITED,A0040400,24/11/2022,HED0329997,202.32,N,,N,N
Pendle Borough Council,Engineering & Special Projects,Supplies and Services,EFM : Photocopiers,4001,CANON (UK) LIMITED,A0040400,24/11/2022,HED0329996,209.84,N,,N,N
Pendle Borough Council,Engineering & Special Projects,Supplies and Services,EFM : Photocopiers,4001,CANON (UK) LIMITED,A0040400,24/11/2022,HED0329998,326.42,N,,N,N
Pendle Borough Council,Engineering & Special Projects,Supplies and Services,Printing & Stationery,4301,CANON (UK) LIMITED,A0040400,24/11/2022,HED0330003,37.53,N,,N,N
Pendle Borough Council,Engineering & Special Projects,Supplies and Services,Printing & Stationery,4301,CANON (UK) LIMITED,A0040400,24/11/2022,HED0330002,6.95,N,,N,N
Pendle Borough Council,Engineering & Special Projects,Supplies and Services,Printing & Stationery,4301,CANON (UK) LIMITED,A0040400,24/11/2022,HED0330000,32.09,N,,N,N
Pendle Borough Council,Engineering & Special Projects,Supplies and Services,Printing & Stationery,4301,CANON (UK) LIMITED,A0040400,24/11/2022,HED0330001,146.67,N,,N,N
Pendle Borough Council,Financial Services,Supplies and Services,Consultants Fees,4401,CANON (UK) LIMITED,A0040400,24/11/2022,AAS0330094,75.2,N,,N,N
Pendle Borough Council,Human Resources,Indirect Employee Expenses,Recruitment,1221,SOLACE GROUP LIMITED,A0040401,10/11/2022,PER0329720,4884.95,N,,N,N
Pendle Borough Council,Engineering & Special Projects,Supplies and Services,Printing & Stationery,4301,CIVICA ELECTION SERVICES,A0041321,03/11/2022,HED0329537,906.44,N,,N,N
Pendle Borough Council,Engineering & Special Projects,Supplies and Services,Other Expenses,4705,NATHANIEL LICHFIELD & PARTNERS,A0042398,24/11/2022,HED0329992,18745,N,,N,N
Pendle Borough Council,Engineering & Special Projects,Capital Costs,Capital : Payments,CD14,D J LINGARD & ASSOCIATES LTD,A0042727,24/11/2022,HED0330049,960,N,,N,N
Pendle Borough Council,Engineering & Special Projects,Capital Costs,Capital : Payments,CD14,D J LINGARD & ASSOCIATES LTD,A0042727,17/11/2022,HED0329928,240,N,,N,N
Pendle Borough Council,Engineering & Special Projects,Capital Costs,Ren Grant : 1996 Act,CH22,D J LINGARD & ASSOCIATES LTD,A0042727,03/11/2022,HED0329550,90,N,,N,N
Pendle Borough Council,Parks & Recreation Services,Premises Related Expense,Grounds : R & M : Day to Day : Routine,2101,C & R WALNE ENGRAVERS,A0042734,17/11/2022,PCO0329775,36,N,,N,N
Pendle Borough Council,Operational Services,,Stock : Purchases,PJ01,PMC POLYTHENE LIMITED,A0043215,03/11/2022,OPS4006607,-904,N,,N,N
Pendle Borough Council,Operational Services,,Stock : Purchases,PJ01,PMC POLYTHENE LIMITED,A0043215,03/11/2022,OPS4006608,-239.4,N,,N,N
Pendle Borough Council,Operational Services,,Stock : Purchases,PJ01,PMC POLYTHENE LIMITED,A0043215,03/11/2022,OPS0328896,379.68,N,,N,N
Pendle Borough Council,Operational Services,,Stock : Purchases,PJ01,PMC POLYTHENE LIMITED,A0043215,03/11/2022,OPS0329529,1084.8,N,,N,N
Pendle Borough Council,Parks & Recreation Services,Transport Related Expense,Tprt : Repairs : General,3105, J RUSHTON,A0043864,17/11/2022,PCO0329908,80,N,,N,N
Pendle Borough Council,Engineering & Special Projects,Supplies and Services,Mayoral Expenses,4614,FENCE GATE LTD,A0043865,03/11/2022,HED0329520,300,N,,N,N
Pendle Borough Council,Operational Services,Supplies and Services,Sub-Contractors,4007,S M SHEPHERD BUILDING CONTRACTORS,A0044037,17/11/2022,OPS0329863,150,N,,N,N
Pendle Borough Council,Operational Services,Supplies and Services,Sub-Contractors,4007,S M SHEPHERD BUILDING CONTRACTORS,A0044037,17/11/2022,OPS0329863,150,N,,N,N
Pendle Borough Council,Operational Services,Agency Costs,Refuse Collection DLO,5005,S M SHEPHERD BUILDING CONTRACTORS,A0044037,17/11/2022,OPS0329862,50,N,,N,N
Pendle Borough Council,Operational Services,Agency Costs,Refuse Collection DLO,5005,S M SHEPHERD BUILDING CONTRACTORS,A0044037,17/11/2022,OPS0329862,50,N,,N,N
Pendle Borough Council,Parks & Recreation Services,,Paid in the Year,PD03,S M SHEPHERD BUILDING CONTRACTORS,A0044037,03/11/2022,PCO0329570,180,N,,N,N
Pendle Borough Council,Parks & Recreation Services,,Paid in the Year,PD03,S M SHEPHERD BUILDING CONTRACTORS,A0044037,03/11/2022,PCO0329570,180,N,,N,N
Pendle Borough Council,Financial Services,Supplies and Services,Other Expenses,4705,OUZLEDALE FOUNDRY CO LTD,A0044378,17/11/2022,AAS0329980,370.2,N,,N,N
Pendle Borough Council,Financial Services,,Paid in the Year,PD03,OUZLEDALE FOUNDRY CO LTD,A0044378,17/11/2022,AAS0329980,5789,N,,N,N
Pendle Borough Council,Parks & Recreation Services,Premises Related Expense,Grounds : R & M : Day to Day : Routine,2101,SUTCLIFFE PLAY LTD,A0045788,03/11/2022,PCO0329564,448.79,N,,N,N
Pendle Borough Council,Parks & Recreation Services,Premises Related Expense,Grounds : R & M : Day to Day : Routine,2101,SUTCLIFFE PLAY LTD,A0045788,24/11/2022,PCO0330015,730.98,N,,N,N
Pendle Borough Council,Property Services,Supplies and Services,Publicity & advertisement,4704,LOOP PUBLISHING LTD,A0047429,24/11/2022,EST0330090,175,N,,N,N
Pendle Borough Council,Planning & Building Control,Supplies and Services,EFM : Other Equipment,4003,VIP SYSTEM LIMITED,A0050529,10/11/2022,PBC0329741,2388.44,N,,N,N
Pendle Borough Council,Planning & Building Control,Supplies and Services,EFM : Other Equipment,4003,VIP SYSTEM LIMITED,A0050529,10/11/2022,PBC0329741,284.4,N,,N,N
Pendle Borough Council,Financial Services,Premises Related Expense,Rents,2301,LIBERATA UK LTD,A0051618,10/11/2022,AAS0329786,502.33,N,,N,N
Pendle Borough Council,Financial Services,Agency Costs,Liberata,5301,LIBERATA UK LTD,A0051618,24/11/2022,AAS0330096,3926.09,N,,N,N
Pendle Borough Council,Financial Services,Agency Costs,Liberata U/C,5303,LIBERATA UK LTD,A0051618,10/11/2022,AAS0329785,6191.67,N,,N,N
Pendle Borough Council,Financial Services,Agency Costs,Liberata U/C,5303,LIBERATA UK LTD,A0051618,10/11/2022,AAS0329785,34439.05,N,,N,N
Pendle Borough Council,Financial Services,Agency Costs,Liberata U/C,5303,LIBERATA UK LTD,A0051618,10/11/2022,AAS0329785,30524.21,N,,N,N
Pendle Borough Council,Financial Services,Agency Costs,Liberata U/C,5303,LIBERATA UK LTD,A0051618,10/11/2022,AAS0329785,87715.02,N,,N,N
Pendle Borough Council,Financial Services,Agency Costs,Liberata U/C,5303,LIBERATA UK LTD,A0051618,10/11/2022,AAS0329785,57718.75,N,,N,N
Pendle Borough Council,Financial Services,Agency Costs,Liberata U/C,5303,LIBERATA UK LTD,A0051618,10/11/2022,AAS0329785,89614.79,N,,N,N
Pendle Borough Council,Financial Services,Agency Costs,Liberata U/C,5303,LIBERATA UK LTD,A0051618,10/11/2022,AAS0329785,117970.91,N,,N,N
Pendle Borough Council,Financial Services,Capital Costs,Capital : Payments,CD14,LIBERATA UK LTD,A0051618,10/11/2022,AAS0329784,4688.69,N,,N,N
Pendle Borough Council,Engineering & Special Projects,Capital Costs,Capital: Design Fees,CD53,LIBERATA UK LTD,A0051618,17/11/2022,HED0329826,3947.83,N,,N,N
Pendle Borough Council,Property Services,Premises Related Expense,Electricity,2203,SOUTHERN ELECTRIC,A0051726,17/11/2022,EST0329948,379.48,N,,N,N
Pendle Borough Council,Human Resources,Supplies and Services,Other Expenses,4705,FIDELITI LIMITED,A0052058,10/11/2022,PER0329718,12.15,N,,N,N
Pendle Borough Council,Parks & Recreation Services,Premises Related Expense,Grounds : R & M : Day to Day : Routine,2101,ARCOL ENGINEERING LTD,A0052060,17/11/2022,PCO0329721,110,N,,N,N
Pendle Borough Council,Parks & Recreation Services,Premises Related Expense,Grounds : R & M : Day to Day : Routine,2101,ARCOL ENGINEERING LTD,A0052060,17/11/2022,PCO0329717,180,N,,N,N
Pendle Borough Council,Financial Services,Supplies and Services,Consultants Fees,4401,LINK TREASURY SERVICES LIMITED,A0055209,10/11/2022,AAS0329796,4250,N,,N,N
Pendle Borough Council,Human Resources,Supplies and Services,Seminars etc All Costs,4601,BEN SHAW TRAINING LIMITED,A0055722,10/11/2022,PER0329719,210,N,,N,N
Pendle Borough Council,Human Resources,Supplies and Services,Seminars etc All Costs,4601,BEN SHAW TRAINING LIMITED,A0055722,10/11/2022,PER0329719,1400,N,,N,N
Pendle Borough Council,Engineering & Special Projects,Premises Related Expense,Bldgs : R & M : Day To Day,2001,A BINNS & CO,A0057121,10/11/2022,HED0329736,190,N,,N,N
Pendle Borough Council,Parks & Recreation Services,Premises Related Expense,Grounds : R & M : Day to Day : Routine,2101,A BINNS & CO,A0057121,17/11/2022,PCO0329890,75,N,,N,N
Pendle Borough Council,Parks & Recreation Services,Premises Related Expense,Grounds : R & M : Day to Day : Routine,2101,A BINNS & CO,A0057121,17/11/2022,PCO0329890,800,N,,N,N
Pendle Borough Council,Engineering & Special Projects,Premises Related Expense,Grounds : R & M : Day to Day : Routine,2101,A BINNS & CO,A0057121,03/11/2022,HED0329578,885,N,,N,N
Pendle Borough Council,Parks & Recreation Services,Premises Related Expense,Grounds : R & M : Day to Day : Routine,2101,A BINNS & CO,A0057121,17/11/2022,PCO0329888,190,N,,N,N
Pendle Borough Council,Parks & Recreation Services,Premises Related Expense,Grounds : R & M : Day to Day : Routine,2101,A BINNS & CO,A0057121,17/11/2022,PCO0329888,190,N,,N,N
Pendle Borough Council,Property Services,Premises Related Expense,Electricity,2203,BRITISH GAS,A0057202,17/11/2022,EST0329949,81.02,N,,N,N
Pendle Borough Council,Operational Services,Transport Related Expense,Tprt : Repairs : General,3105,UNITED UTILITIES,A0059246,10/11/2022,OPS0329650,23.45,N,,N,N
Pendle Borough Council,Operational Services,Transport Related Expense,Tprt : Repairs : General,3105,UNITED UTILITIES,A0059246,10/11/2022,OPS0329650,23.45,N,,N,N
Pendle Borough Council,Engineering & Special Projects,Agency Costs,Lancashire C C,5102,NSL LIMITED,A0059256,10/11/2022,HED0329660,2223.36,N,,N,N
Pendle Borough Council,Engineering & Special Projects,Premises Related Expense,Grounds : R & M : Day to Day : Routine,2101,NATIONAL WORLD PUBLISHING LTD,A0059640,24/11/2022,HED0330008,170.1,N,,N,N
Pendle Borough Council,Engineering & Special Projects,Supplies and Services,Adverts : Statutory Notice,4702,NATIONAL WORLD PUBLISHING LTD,A0059640,24/11/2022,HED0330009,218.7,N,,N,N
Pendle Borough Council,Engineering & Special Projects,Supplies and Services,Adverts : Statutory Notice,4702,NATIONAL WORLD PUBLISHING LTD,A0059640,17/11/2022,HED0329887,267.3,N,,N,N
Pendle Borough Council,Engineering & Special Projects,Supplies and Services,Adverts : Statutory Notice,4702,NATIONAL WORLD PUBLISHING LTD,A0059640,10/11/2022,HED0329666,291.6,N,,N,N
Pendle Borough Council,Engineering & Special Projects,Supplies and Services,Adverts : Statutory Notice,4702,NATIONAL WORLD PUBLISHING LTD,A0059640,03/11/2022,HED0329516,315.9,N,,N,N
Pendle Borough Council,Engineering & Special Projects,Transfer Payments,Accommodation ,6103,HILL VIEW (PRIVATE) HOTEL,A0059754,03/11/2022,HED0329577,17570,N,,N,N
Pendle Borough Council,Engineering & Special Projects,Supplies and Services,Other Expenses,4705,BRIGHT LITES UK LIMITED,A0059988,24/11/2022,HED0330028,200,N,,N,N
Pendle Borough Council,Property Services,Premises Related Expense,Bldgs : R & M : Day To Day,2001,MAXIGIENE ENVIRONMENTAL SERVICES LTD,A0060911,03/11/2022,EST0329607,25,N,,N,N
Pendle Borough Council,Property Services,Premises Related Expense,Bldgs : R & M : Day To Day,2001,MAXIGIENE ENVIRONMENTAL SERVICES LTD,A0060911,10/11/2022,EST0329770,25,N,,N,N
Pendle Borough Council,Property Services,Premises Related Expense,Bldgs : R & M : Day To Day,2001,MAXIGIENE ENVIRONMENTAL SERVICES LTD,A0060911,10/11/2022,EST0329769,35,N,,N,N
Pendle Borough Council,Property Services,Supplies and Services,Other Expenses,4705,MAXIGIENE ENVIRONMENTAL SERVICES LTD,A0060911,10/11/2022,EST0329768,745,N,,N,N
Pendle Borough Council,Parks & Recreation Services,Premises Related Expense,Bldgs : R & M : Day To Day,2001,SMARTWATER TECHNOLOGY LIMITED,A0060912,17/11/2022,PCO0329909,100,N,,N,N
Pendle Borough Council,Financial Services,Capital Costs,Land Remediation Costs,CD22,PENDLE HIPPODROME THEATRE LTD,A0060913,01/11/2022,AAS0329512,420,N,,N,N
Pendle Borough Council,Financial Services,Capital Costs,Capital: Design Fees,CD53,PENDLE HIPPODROME THEATRE LTD,A0060913,01/11/2022,AAS0329512,280,N,,N,N
Pendle Borough Council,Financial Services,Capital Costs,Capital: Design Fees,CD53,PENDLE HIPPODROME THEATRE LTD,A0060913,01/11/2022,AAS0329512,1188,N,,N,N
Pendle Borough Council,Financial Services,Capital Costs,Capital: Design Fees,CD53,PENDLE HIPPODROME THEATRE LTD,A0060913,01/11/2022,AAS0329512,8280.2,N,,N,N
Pendle Borough Council,Operational Services,Supplies and Services,EFM Materials,4004,CONTAINER CARE SOLUTIONS LIMITED,A0061112,17/11/2022,OPS0329842,460,N,,N,N
Pendle Borough Council,Parks & Recreation Services,Transport Related Expense,Tprt : Repairs : General,3105,VALE ENGINEERING (YORK) LTD,A0061399,17/11/2022,PCO0329877,9,N,,N,N
Pendle Borough Council,Parks & Recreation Services,Transport Related Expense,Tprt : Repairs : General,3105,VALE ENGINEERING (YORK) LTD,A0061399,17/11/2022,PCO0329877,115.62,N,,N,N
Pendle Borough Council,Operational Services,Premises Related Expense,Bldgs : R & M : Day To Day,2001,KEYPLUS SECURITY LIMITED,A0062723,10/11/2022,OPS0329674,58.5,N,,N,N
Pendle Borough Council,Planning & Building Control,Supplies and Services,EFM Materials,4004,NEW MIND INTERNET CONSULTANCY LTD,A0064687,10/11/2022,PBC0329713,100,N,,N,N
Pendle Borough Council,Human Resources,Transport Related Expense,Car Allows : Offs : Lease Exps,3806,ARNOLD CLARK VEHICLE MANAGEMENT,A0065524,24/11/2022,PER4006630,-1766.64,N,,N,N
Pendle Borough Council,Human Resources,Transport Related Expense,Car Allows : Offs : Lease Exps,3806,ARNOLD CLARK VEHICLE MANAGEMENT,A0065524,24/11/2022,PER4006630,-558.36,N,,N,N
Pendle Borough Council,Human Resources,Transport Related Expense,Car Allows : Offs : Lease Exps,3806,ARNOLD CLARK VEHICLE MANAGEMENT,A0065524,24/11/2022,PER0330041,1449.94,N,,N,N
Pendle Borough Council,Human Resources,Transport Related Expense,Car Allows : Offs : Lease Exps,3806,ARNOLD CLARK VEHICLE MANAGEMENT,A0065524,24/11/2022,PER0330041,1766.64,N,,N,N
Pendle Borough Council,Human Resources,Transport Related Expense,Tprt : Annual Hire Charge,3601,LEX AUTOLEASE LIMITED,A0066530,24/11/2022,PER0330044,343.04,N,,N,N
Pendle Borough Council,Property Services,Premises Related Expense,Bldgs : R & M : Day To Day,2001,SPEAKMAN CONTRACTORS LTD,A0066581,10/11/2022,EST0329747,342.08,N,,N,N
Pendle Borough Council,Property Services,Premises Related Expense,Bldgs : R & M : Day To Day,2001,SPEAKMAN CONTRACTORS LTD,A0066581,10/11/2022,EST0329747,27.93,N,,N,N
Pendle Borough Council,Property Services,Premises Related Expense,Bldgs : R & M : Day To Day,2001,SPEAKMAN CONTRACTORS LTD,A0066581,10/11/2022,EST0329747,332.52,N,,N,N
Pendle Borough Council,Property Services,Premises Related Expense,Bldgs : R & M : Day To Day,2001,SPEAKMAN CONTRACTORS LTD,A0066581,10/11/2022,EST0329747,111.72,N,,N,N
Pendle Borough Council,Property Services,Premises Related Expense,Bldgs : R & M : Day To Day,2001,SPEAKMAN CONTRACTORS LTD,A0066581,10/11/2022,EST0329747,25.65,N,,N,N
Pendle Borough Council,Property Services,Premises Related Expense,Bldgs : R & M : Day To Day,2001,SPEAKMAN CONTRACTORS LTD,A0066581,10/11/2022,EST0329747,27.93,N,,N,N
Pendle Borough Council,Property Services,Premises Related Expense,Bldgs : R & M : Day To Day,2001,SPEAKMAN CONTRACTORS LTD,A0066581,10/11/2022,EST0329747,364.05,N,,N,N
Pendle Borough Council,Property Services,Premises Related Expense,Bldgs : Vandalism Repairs,2005,SPEAKMAN CONTRACTORS LTD,A0066581,10/11/2022,EST0329747,642.85,N,,N,N
Pendle Borough Council,Property Services,Premises Related Expense,Grounds : R & M : Day to Day : Routine,2101,SPEAKMAN CONTRACTORS LTD,A0066581,10/11/2022,EST0329747,253.77,N,,N,N
Pendle Borough Council,Property Services,Capital Costs,Capital : Payments,CD14,SPEAKMAN CONTRACTORS LTD,A0066581,10/11/2022,EST0329747,434.05,N,,N,N
Pendle Borough Council,Operational Services,Supplies and Services,Other Expenses,4705,BACK CARE SOLUTIONS LIMITED,A0067155,24/11/2022,OPS0330021,75,N,,N,N
Pendle Borough Council,Human Resources,Indirect Employee Expenses,Emp : Medical Expenses,1236,PEOPLE ASSET MANAGEMENT LIMITED,A0067613,24/11/2022,PER0330043,142.5,N,,N,N
Pendle Borough Council,Engineering & Special Projects,Supplies and Services,LCC Levy (Admins Costs),4419,PATROL,A0067663,10/11/2022,HED0329661,54.3,N,,N,N
Pendle Borough Council,Parks & Recreation Services,Premises Related Expense,Bldgs : R & M : Day To Day,2001,BT GLOBAL SERVICES,A0068167,24/11/2022,PCO0329966,151.83,N,,N,N
Pendle Borough Council,Engineering & Special Projects,Supplies and Services,Processing Fees,4424,CHIPSIDE LTD,A0068587,17/11/2022,HED0329818,13.98,N,,N,N
Pendle Borough Council,Engineering & Special Projects,Supplies and Services,Processing Fees,4424,CHIPSIDE LTD,A0068587,24/11/2022,HED0329991,147.6,N,,N,N
Pendle Borough Council,Engineering & Special Projects,Supplies and Services,Processing Fees,4424,CHIPSIDE LTD,A0068587,10/11/2022,HED0329662,183.12,N,,N,N
Pendle Borough Council,Engineering & Special Projects,Capital Costs,Capital : Payments,CD14,DONALD LOMAX & PARTNERS LTD,A0069764,03/11/2022,HED0329536,1250,N,,N,N
Pendle Borough Council,Planning & Building Control,Supplies and Services,EFM : Other Equipment,4003,ID MANAGEMENT SYSTEMS,A0069768,10/11/2022,PBC0329740,501.8,N,,N,N
Pendle Borough Council,Planning & Building Control,Supplies and Services,Printing & Stationery,4301,ID MANAGEMENT SYSTEMS,A0069768,17/11/2022,PBC0329883,197.7,N,,N,N
Pendle Borough Council,Engineering & Special Projects,Supplies and Services,Mayoral Expenses,4614,REDACT - PERSONAL DATA,A0072575,17/11/2022,HED0329827,6,N,,N,N
Pendle Borough Council,Human Resources,Supplies and Services,EFM : Other Equipment,4003,CYCLESCHEME LTD,A0072578,24/11/2022,PER4006598,-1000,N,,N,N
Pendle Borough Council,Human Resources,Supplies and Services,EFM : Other Equipment,4003,CYCLESCHEME LTD,A0072578,24/11/2022,PER0330042,531.65,N,,N,N
Pendle Borough Council,Human Resources,Supplies and Services,EFM : Other Equipment,4003,CYCLESCHEME LTD,A0072578,24/11/2022,PER0329442,1100,N,,N,N
Pendle Borough Council,Engineering & Special Projects,Supplies and Services,Other Expenses,4705,PETTY REAL LIMITED,A0072829,24/11/2022,HED0330040,450,N,,N,N
Pendle Borough Council,Parks & Recreation Services,Premises Related Expense,Grounds : R & M : Day to Day : Routine,2101,FENLAND LEISURE PRODUCTS LIMITED,A0072950,17/11/2022,PCO0329880,12,N,,N,N
Pendle Borough Council,Parks & Recreation Services,Premises Related Expense,Grounds : R & M : Day to Day : Routine,2101,FENLAND LEISURE PRODUCTS LIMITED,A0072950,17/11/2022,PCO0329880,72,N,,N,N
Pendle Borough Council,Engineering & Special Projects,Supplies and Services,Other Expenses,4705,BASIS (REGISTRATION) LTD,A0074789,24/11/2022,HED0329989,50,N,,N,N
Pendle Borough Council,Financial Services,Supplies and Services,Subscriptions & Donations,4706,VODAFONE LIMITED,A0076999,10/11/2022,AAS0329799,1057.89,N,,N,N
Pendle Borough Council,Engineering & Special Projects,Supplies and Services,Reference Books Acts,4304,THOMSON REUTERS PROFESSIONAL UK LIMITED,A0077400,10/11/2022,HED0329658,1099,N,,N,N
Pendle Borough Council,Operational Services,Supplies and Services,EFM : Other Equipment,4003,GLASDON UK LIMITED,A0078667,17/11/2022,OPS0329899,394.05,N,,N,N
Pendle Borough Council,Operational Services,Supplies and Services,EFM : Other Equipment,4003,GLASDON UK LIMITED,A0078667,03/11/2022,OPS0329543,538.4,N,,N,N
Pendle Borough Council,Parks & Recreation Services,Premises Related Expense,Grounds : R & M : Day to Day : Routine,2101,GROUNDSMAN TOOLS LTD,A0079260,24/11/2022,PCO0330036,78.46,N,,N,N
Pendle Borough Council,Engineering & Special Projects,Supplies and Services,Community Engagement,4747,IN-SITU,A0079936,17/11/2022,HED0329886,10910,N,,N,N
Pendle Borough Council,Democratic & Legal Services,Supplies and Services,Miscellaneous : Other,4707,KELBROOK AND SOUGH VILLAGE HALL,A0081339,03/11/2022,DAL0329581,120,N,1101005,N,N
Pendle Borough Council,Engineering & Special Projects,Supplies and Services,Other Expenses,4705,CALICO ENTERPRISE,A0082574,17/11/2022,HED0329867,76.51,N,,N,N
Pendle Borough Council,Parks & Recreation Services,Transport Related Expense,Diesel Oil,3202,TATE FUEL OILS LIMITED,A0082819,17/11/2022,PCO0329910,3100,N,,N,N
Pendle Borough Council,Engineering & Special Projects,Supplies and Services,EFM Materials,4004,PRACTICALLY EVERYTHING LIMITED,A0083311,03/11/2022,HED0329548,56.67,N,,N,N
Pendle Borough Council,Operational Services,Transport Related Expense,Diesel Oil,3202,CRAGGS ENERGY LIMITED,A0083617,03/11/2022,OPS0329544,964.93,N,,N,N
Pendle Borough Council,Operational Services,Transport Related Expense,Diesel Oil,3202,CRAGGS ENERGY LIMITED,A0083617,03/11/2022,OPS0329544,964.93,N,,N,N
Pendle Borough Council,Operational Services,Transport Related Expense,Diesel Oil,3202,CRAGGS ENERGY LIMITED,A0083617,03/11/2022,OPS0329544,964.93,N,,N,N
Pendle Borough Council,Operational Services,Transport Related Expense,Diesel Oil,3202,CRAGGS ENERGY LIMITED,A0083617,03/11/2022,OPS0329544,964.93,N,,N,N
Pendle Borough Council,Operational Services,Transport Related Expense,Diesel Oil,3202,CRAGGS ENERGY LIMITED,A0083617,03/11/2022,OPS0329544,964.93,N,,N,N
Pendle Borough Council,Operational Services,Transport Related Expense,Diesel Oil,3202,CRAGGS ENERGY LIMITED,A0083617,03/11/2022,OPS0329544,964.9,N,,N,N
Pendle Borough Council,Financial Services,Supplies and Services,Allpay,4422,ALLPAY LIMITED,A0084372,10/11/2022,AAS0329789,10,N,,N,N
Pendle Borough Council,Financial Services,Supplies and Services,Allpay,4422,ALLPAY LIMITED,A0084372,10/11/2022,AAS0329790,10,N,,N,N
Pendle Borough Council,Financial Services,Supplies and Services,Allpay,4422,ALLPAY LIMITED,A0084372,10/11/2022,AAS0329792,20.5,N,,N,N
Pendle Borough Council,Financial Services,Supplies and Services,Allpay,4422,ALLPAY LIMITED,A0084372,10/11/2022,AAS0329793,22.53,N,,N,N
Pendle Borough Council,Financial Services,Supplies and Services,Allpay,4422,ALLPAY LIMITED,A0084372,10/11/2022,AAS0329788,64.96,N,,N,N
Pendle Borough Council,Financial Services,Supplies and Services,Allpay,4422,ALLPAY LIMITED,A0084372,10/11/2022,AAS0329791,1759.58,N,,N,N
Pendle Borough Council,Engineering & Special Projects,Capital Costs,Capital : Payments,CD14,ELITE PLUMBING,A0084584,24/11/2022,HED0329993,1712.11,N,,N,N
Pendle Borough Council,Engineering & Special Projects,Supplies and Services,Other Expenses,4705,REDACT - PERSONAL DATA,A0085472,17/11/2022,HED0329820,538.95,N,,N,N
Pendle Borough Council,Engineering & Special Projects,Premises Related Expense,Grounds : R & M : Day to Day : Routine,2101,KEVIN WILKINSON LANDSCAPES LTD,A0085660,10/11/2022,HED0329724,250,N,,N,N
Pendle Borough Council,Engineering & Special Projects,Premises Related Expense,Grounds : R & M : Day to Day : Routine,2101,KEVIN WILKINSON LANDSCAPES LTD,A0085660,10/11/2022,HED0329725,1850,N,,N,N
Pendle Borough Council,Engineering & Special Projects,Supplies and Services,Other Expenses,4705,PREMIER PROPERTY MANAGEMENT LIMITED,A0086363,03/11/2022,HED0329582,475,N,,N,N
Pendle Borough Council,Engineering & Special Projects,Capital Costs,Capital : Payments,CD14,MARCHBRIDGE BUILDERS LIMITED,A0087284,10/11/2022,HED0329734,45535.67,N,,N,N
Pendle Borough Council,Financial Services,Premises Related Expense,Electricity,2203,EDF ENERGY,A0088932,10/11/2022,AAS0330385,30.61,N,,N,N
Pendle Borough Council,Financial Services,Premises Related Expense,Electricity,2203,EDF ENERGY,A0088932,10/11/2022,AAS0330385,50.28,N,,N,N
Pendle Borough Council,Financial Services,Premises Related Expense,Electricity,2203,EDF ENERGY,A0088932,10/11/2022,AAS0330385,30.75,N,,N,N
Pendle Borough Council,Financial Services,Premises Related Expense,Electricity,2203,EDF ENERGY,A0088932,10/11/2022,AAS0330385,74.41,N,,N,N
Pendle Borough Council,Financial Services,Premises Related Expense,Electricity,2203,EDF ENERGY,A0088932,10/11/2022,AAS0330385,101.84,N,,N,N
Pendle Borough Council,Financial Services,Premises Related Expense,Electricity,2203,EDF ENERGY,A0088932,10/11/2022,AAS0330385,118.3,N,,N,N
Pendle Borough Council,Financial Services,Premises Related Expense,Electricity,2203,EDF ENERGY,A0088932,10/11/2022,AAS0330385,193.75,N,,N,N
Pendle Borough Council,Financial Services,Premises Related Expense,Electricity,2203,EDF ENERGY,A0088932,10/11/2022,AAS0330385,87.58,N,,N,N
Pendle Borough Council,Financial Services,Premises Related Expense,Electricity,2203,EDF ENERGY,A0088932,10/11/2022,AAS0330385,149.19,N,,N,N
Pendle Borough Council,Financial Services,Premises Related Expense,Electricity,2203,EDF ENERGY,A0088932,10/11/2022,AAS0330385,26.07,N,,N,N
Pendle Borough Council,Financial Services,Premises Related Expense,Electricity,2203,EDF ENERGY,A0088932,10/11/2022,AAS0330385,365.03,N,,N,N
Pendle Borough Council,Financial Services,Premises Related Expense,Electricity,2203,EDF ENERGY,A0088932,10/11/2022,AAS0330385,34.94,N,,N,N
Pendle Borough Council,Financial Services,Premises Related Expense,Electricity,2203,EDF ENERGY,A0088932,10/11/2022,AAS0330385,32.23,N,,N,N
Pendle Borough Council,Financial Services,Premises Related Expense,Electricity,2203,EDF ENERGY,A0088932,10/11/2022,AAS0330385,29.5,N,,N,N
Pendle Borough Council,Financial Services,Premises Related Expense,Electricity,2203,EDF ENERGY,A0088932,10/11/2022,AAS0330385,1083.53,N,,N,N
Pendle Borough Council,Financial Services,Premises Related Expense,Electricity,2203,EDF ENERGY,A0088932,10/11/2022,AAS0330385,27.48,N,,N,N
Pendle Borough Council,Financial Services,Premises Related Expense,Electricity,2203,EDF ENERGY,A0088932,10/11/2022,AAS0330385,217.43,N,,N,N
Pendle Borough Council,Financial Services,Premises Related Expense,Electricity,2203,EDF ENERGY,A0088932,10/11/2022,AAS0330385,58.58,N,,N,N
Pendle Borough Council,Financial Services,Premises Related Expense,Electricity,2203,EDF ENERGY,A0088932,10/11/2022,AAS0330385,140.09,N,,N,N
Pendle Borough Council,Financial Services,Premises Related Expense,Electricity,2203,EDF ENERGY,A0088932,10/11/2022,AAS0330385,225.6,N,,N,N
Pendle Borough Council,Financial Services,Premises Related Expense,Electricity,2203,EDF ENERGY,A0088932,10/11/2022,AAS0330385,24.19,N,,N,N
Pendle Borough Council,Financial Services,Premises Related Expense,Electricity,2203,EDF ENERGY,A0088932,10/11/2022,AAS0330385,175.98,N,,N,N
Pendle Borough Council,Financial Services,Premises Related Expense,Electricity,2203,EDF ENERGY,A0088932,10/11/2022,AAS0330385,37.9,N,,N,N
Pendle Borough Council,Financial Services,Premises Related Expense,Electricity,2203,EDF ENERGY,A0088932,10/11/2022,AAS0330385,64.6,N,,N,N
Pendle Borough Council,Financial Services,Premises Related Expense,Electricity,2203,EDF ENERGY,A0088932,10/11/2022,AAS0330385,506.82,N,,N,N
Pendle Borough Council,Financial Services,Premises Related Expense,Electricity,2203,EDF ENERGY,A0088932,10/11/2022,AAS0330385,1266.02,N,,N,N
Pendle Borough Council,Financial Services,Supplies and Services,Other Expenses,4705,EDF ENERGY,A0088932,10/11/2022,AAS0330385,20.97,N,,N,N
Pendle Borough Council,Financial Services,Supplies and Services,Other Expenses,4705,EDF ENERGY,A0088932,10/11/2022,AAS0330385,22.56,N,,N,N
Pendle Borough Council,Property Services,Premises Related Expense,Bldgs : R & M : Day To Day,2001,CATCHPOINT (UK) LIMITED,A0089500,17/11/2022,EST0329951,160,N,,N,N
Pendle Borough Council,Property Services,Premises Related Expense,Bldgs : R & M : Day To Day,2001,CATCHPOINT (UK) LIMITED,A0089500,17/11/2022,EST0329953,26,N,,N,N
Pendle Borough Council,Property Services,Premises Related Expense,Bldgs : R & M : Day To Day,2001,CATCHPOINT (UK) LIMITED,A0089500,03/11/2022,EST0329586,95,N,,N,N
Pendle Borough Council,Property Services,Premises Related Expense,Bldgs : R & M : Day To Day,2001,CATCHPOINT (UK) LIMITED,A0089500,17/11/2022,EST0329950,160,N,,N,N
Pendle Borough Council,Property Services,Premises Related Expense,Bldgs : R & M : Day To Day,2001,CATCHPOINT (UK) LIMITED,A0089500,17/11/2022,EST0329952,160,N,,N,N
Pendle Borough Council,Property Services,Premises Related Expense,Bldgs : R & M : Day To Day,2001,CATCHPOINT (UK) LIMITED,A0089500,03/11/2022,EST0329584,160,N,,N,N
Pendle Borough Council,Property Services,Premises Related Expense,Bldgs : R & M : Day To Day,2001,CATCHPOINT (UK) LIMITED,A0089500,03/11/2022,EST0329588,999.1,N,,N,N
Pendle Borough Council,Property Services,Premises Related Expense,Bldgs : R & M : Day To Day,2001,CATCHPOINT (UK) LIMITED,A0089500,03/11/2022,EST0329583,160,N,,N,N
Pendle Borough Council,Property Services,Premises Related Expense,Bldgs : R & M : Day To Day,2001,CATCHPOINT (UK) LIMITED,A0089500,03/11/2022,EST0329608,160,N,,N,N
Pendle Borough Council,Parks & Recreation Services,Premises Related Expense,Grounds : R & M : Day to Day : Routine,2101,SALTERFORTH NURSERIES & GARDEN CTR LTD,A0090064,17/11/2022,PCO0329881,63,N,,N,N
Pendle Borough Council,Engineering & Special Projects,Supplies and Services,Other Expenses,4705,COLNE & NELSON RUGBY CLUB LTD,A0090066,24/11/2022,HED0330006,450,N,,N,N
Pendle Borough Council,Engineering & Special Projects,Premises Related Expense,Bldgs : R & M : Abnormal,2002,A B C ELECTRICAL,A0090085,17/11/2022,HED0329914,120,N,,N,N
Pendle Borough Council,Engineering & Special Projects,Supplies and Services,Publicity & advertisement,4704,WE LOVE CREATIVE LIMITED,A0090098,10/11/2022,HED0329576,400,N,,N,N
Pendle Borough Council,Engineering & Special Projects,Supplies and Services,Publicity & advertisement,4704,WE LOVE CREATIVE LIMITED,A0090098,17/11/2022,HED0329802,400,N,,N,N
Pendle Borough Council,Engineering & Special Projects,Premises Related Expense,Grounds : R & M : Day to Day : Routine,2101,ROBINSON & LAWLOR LIMITED,A0090107,10/11/2022,HED0329733,1159.85,N,,N,N
Pendle Borough Council,Parks & Recreation Services,Premises Related Expense,Grounds : R & M : Day to Day : Routine,2101,MARTIN LEE,A0090177,17/11/2022,PCO0329911,1083.5,N,,N,N
Pendle Borough Council,Parks & Recreation Services,Premises Related Expense,Grounds : R & M : Day to Day : Routine,2101,MARTIN LEE,A0090177,17/11/2022,PCO0329911,577.5,N,,N,N
Pendle Borough Council,Parks & Recreation Services,Premises Related Expense,Grounds : R & M : Day to Day : Routine,2101,MARTIN LEE,A0090177,17/11/2022,PCO0329911,605,N,,N,N
Pendle Borough Council,Parks & Recreation Services,Premises Related Expense,Grounds : R & M : Day to Day : Routine,2101,MARTIN LEE,A0090177,17/11/2022,PCO0329911,520,N,,N,N
Pendle Borough Council,Parks & Recreation Services,Premises Related Expense,Grounds : R & M : Day to Day : Routine,2101,LANDSCAPE SUPPLY COMPANY,A0090209,17/11/2022,PCO0329912,166.6,N,,N,N
Pendle Borough Council,Parks & Recreation Services,Supplies and Services,Protective Clothing,4201,LANDSCAPE SUPPLY COMPANY,A0090209,03/11/2022,PCO0329567,334.29,N,,N,N
Pendle Borough Council,Financial Services,Transport Related Expense,Diesel Oil,3202,FUELMATE LTD,A0090265,08/11/2022,AAS0330332,88.39,N,,N,N
Pendle Borough Council,Financial Services,Transport Related Expense,Diesel Oil,3202,FUELMATE LTD,A0090265,22/11/2022,AAS0330334,97.5,N,,N,N
Pendle Borough Council,Financial Services,Transport Related Expense,Diesel Oil,3202,FUELMATE LTD,A0090265,22/11/2022,AAS0330334,135.22,N,,N,N
Pendle Borough Council,Financial Services,Transport Related Expense,Diesel Oil,3202,FUELMATE LTD,A0090265,01/11/2022,AAS0330331,192.11,N,,N,N
Pendle Borough Council,Financial Services,Transport Related Expense,Diesel Oil,3202,FUELMATE LTD,A0090265,15/11/2022,AAS0330333,245.4,N,,N,N
Pendle Borough Council,Financial Services,Transport Related Expense,Diesel Oil,3202,FUELMATE LTD,A0090265,08/11/2022,AAS0330332,331.28,N,,N,N
Pendle Borough Council,Financial Services,Transport Related Expense,Diesel Oil,3202,FUELMATE LTD,A0090265,29/11/2022,AAS0330335,338.04,N,,N,N
Pendle Borough Council,Financial Services,Transport Related Expense,Diesel Oil,3202,FUELMATE LTD,A0090265,29/11/2022,AAS0330335,300.26,N,,N,N
Pendle Borough Council,Financial Services,Transport Related Expense,Diesel Oil,3202,FUELMATE LTD,A0090265,15/11/2022,AAS0330333,366.85,N,,N,N
Pendle Borough Council,Financial Services,Transport Related Expense,Diesel Oil,3202,FUELMATE LTD,A0090265,08/11/2022,AAS0330332,397.35,N,,N,N
Pendle Borough Council,Financial Services,Transport Related Expense,Diesel Oil,3202,FUELMATE LTD,A0090265,22/11/2022,AAS0330334,404.69,N,,N,N
Pendle Borough Council,Financial Services,Transport Related Expense,Diesel Oil,3202,FUELMATE LTD,A0090265,01/11/2022,AAS0330331,433.44,N,,N,N
Pendle Borough Council,Financial Services,Transport Related Expense,Diesel Oil,3202,FUELMATE LTD,A0090265,08/11/2022,AAS0330332,292.28,N,,N,N
Pendle Borough Council,Financial Services,Transport Related Expense,Diesel Oil,3202,FUELMATE LTD,A0090265,29/11/2022,AAS0330335,352.54,N,,N,N
Pendle Borough Council,Financial Services,Transport Related Expense,Diesel Oil,3202,FUELMATE LTD,A0090265,15/11/2022,AAS0330333,435.73,N,,N,N
Pendle Borough Council,Financial Services,Transport Related Expense,Diesel Oil,3202,FUELMATE LTD,A0090265,22/11/2022,AAS0330334,459.66,N,,N,N
Pendle Borough Council,Financial Services,Transport Related Expense,Diesel Oil,3202,FUELMATE LTD,A0090265,01/11/2022,AAS0330331,460.17,N,,N,N
Pendle Borough Council,Financial Services,Transport Related Expense,Diesel Oil,3202,FUELMATE LTD,A0090265,22/11/2022,AAS0330334,308.24,N,,N,N
Pendle Borough Council,Financial Services,Transport Related Expense,Diesel Oil,3202,FUELMATE LTD,A0090265,08/11/2022,AAS0330332,356.2,N,,N,N
Pendle Borough Council,Financial Services,Transport Related Expense,Diesel Oil,3202,FUELMATE LTD,A0090265,01/11/2022,AAS0330331,382.61,N,,N,N
Pendle Borough Council,Financial Services,Transport Related Expense,Diesel Oil,3202,FUELMATE LTD,A0090265,29/11/2022,AAS0330335,487.78,N,,N,N
Pendle Borough Council,Financial Services,Transport Related Expense,Diesel Oil,3202,FUELMATE LTD,A0090265,15/11/2022,AAS0330333,524.26,N,,N,N
Pendle Borough Council,Financial Services,Transport Related Expense,Diesel Oil,3202,FUELMATE LTD,A0090265,08/11/2022,AAS0330332,296.66,N,,N,N
Pendle Borough Council,Financial Services,Transport Related Expense,Diesel Oil,3202,FUELMATE LTD,A0090265,29/11/2022,AAS0330335,344.25,N,,N,N
Pendle Borough Council,Financial Services,Transport Related Expense,Diesel Oil,3202,FUELMATE LTD,A0090265,01/11/2022,AAS0330331,352.64,N,,N,N
Pendle Borough Council,Financial Services,Transport Related Expense,Diesel Oil,3202,FUELMATE LTD,A0090265,22/11/2022,AAS0330334,353.13,N,,N,N
Pendle Borough Council,Financial Services,Transport Related Expense,Diesel Oil,3202,FUELMATE LTD,A0090265,15/11/2022,AAS0330333,400.69,N,,N,N
Pendle Borough Council,Financial Services,Transport Related Expense,Diesel Oil,3202,FUELMATE LTD,A0090265,15/11/2022,AAS0330333,300.39,N,,N,N
Pendle Borough Council,Financial Services,Transport Related Expense,Diesel Oil,3202,FUELMATE LTD,A0090265,22/11/2022,AAS0330334,311.3,N,,N,N
Pendle Borough Council,Financial Services,Transport Related Expense,Diesel Oil,3202,FUELMATE LTD,A0090265,08/11/2022,AAS0330332,325.54,N,,N,N
Pendle Borough Council,Financial Services,Transport Related Expense,Diesel Oil,3202,FUELMATE LTD,A0090265,01/11/2022,AAS0330331,412.86,N,,N,N
Pendle Borough Council,Financial Services,Transport Related Expense,Diesel Oil,3202,FUELMATE LTD,A0090265,29/11/2022,AAS0330335,462.63,N,,N,N
Pendle Borough Council,Financial Services,Transport Related Expense,Diesel Oil,3202,FUELMATE LTD,A0090265,01/11/2022,AAS0330331,248.55,N,,N,N
Pendle Borough Council,Financial Services,Transport Related Expense,Diesel Oil,3202,FUELMATE LTD,A0090265,15/11/2022,AAS0330333,260.58,N,,N,N
Pendle Borough Council,Financial Services,Transport Related Expense,Diesel Oil,3202,FUELMATE LTD,A0090265,29/11/2022,AAS0330335,349.47,N,,N,N
Pendle Borough Council,Financial Services,Transport Related Expense,Diesel Oil,3202,FUELMATE LTD,A0090265,22/11/2022,AAS0330334,380.41,N,,N,N
Pendle Borough Council,Financial Services,Transport Related Expense,Diesel Oil,3202,FUELMATE LTD,A0090265,08/11/2022,AAS0330332,124.29,N,,N,N
Pendle Borough Council,Financial Services,Transport Related Expense,Diesel Oil,3202,FUELMATE LTD,A0090265,22/11/2022,AAS0330334,158.59,N,,N,N
Pendle Borough Council,Financial Services,Transport Related Expense,Diesel Oil,3202,FUELMATE LTD,A0090265,29/11/2022,AAS0330335,283.36,N,,N,N
Pendle Borough Council,Financial Services,Transport Related Expense,Diesel Oil,3202,FUELMATE LTD,A0090265,01/11/2022,AAS0330331,397.49,N,,N,N
Pendle Borough Council,Financial Services,Transport Related Expense,Diesel Oil,3202,FUELMATE LTD,A0090265,29/11/2022,AAS0330335,293.66,N,,N,N
Pendle Borough Council,Financial Services,Transport Related Expense,Diesel Oil,3202,FUELMATE LTD,A0090265,01/11/2022,AAS0330331,325.07,N,,N,N
Pendle Borough Council,Financial Services,Transport Related Expense,Diesel Oil,3202,FUELMATE LTD,A0090265,08/11/2022,AAS0330332,343.91,N,,N,N
Pendle Borough Council,Financial Services,Transport Related Expense,Diesel Oil,3202,FUELMATE LTD,A0090265,22/11/2022,AAS0330334,360.12,N,,N,N
Pendle Borough Council,Financial Services,Transport Related Expense,Diesel Oil,3202,FUELMATE LTD,A0090265,15/11/2022,AAS0330333,414.63,N,,N,N
Pendle Borough Council,Financial Services,Transport Related Expense,Diesel Oil,3202,FUELMATE LTD,A0090265,22/11/2022,AAS0330334,285.86,N,,N,N
Pendle Borough Council,Financial Services,Transport Related Expense,Diesel Oil,3202,FUELMATE LTD,A0090265,08/11/2022,AAS0330332,304.3,N,,N,N
Pendle Borough Council,Financial Services,Transport Related Expense,Diesel Oil,3202,FUELMATE LTD,A0090265,29/11/2022,AAS0330335,329.19,N,,N,N
Pendle Borough Council,Financial Services,Transport Related Expense,Diesel Oil,3202,FUELMATE LTD,A0090265,15/11/2022,AAS0330333,381.21,N,,N,N
Pendle Borough Council,Financial Services,Transport Related Expense,Diesel Oil,3202,FUELMATE LTD,A0090265,01/11/2022,AAS0330331,382.14,N,,N,N
Pendle Borough Council,Financial Services,Transport Related Expense,Diesel Oil,3202,FUELMATE LTD,A0090265,22/11/2022,AAS0330334,134.3,N,,N,N
Pendle Borough Council,Financial Services,Transport Related Expense,Diesel Oil,3202,FUELMATE LTD,A0090265,29/11/2022,AAS0330335,148.97,N,,N,N
Pendle Borough Council,Financial Services,Transport Related Expense,Diesel Oil,3202,FUELMATE LTD,A0090265,01/11/2022,AAS0330331,259.01,N,,N,N
Pendle Borough Council,Financial Services,Transport Related Expense,Diesel Oil,3202,FUELMATE LTD,A0090265,08/11/2022,AAS0330332,268.94,N,,N,N
Pendle Borough Council,Financial Services,Transport Related Expense,Diesel Oil,3202,FUELMATE LTD,A0090265,29/11/2022,AAS0330335,155.26,N,,N,N
Pendle Borough Council,Financial Services,Transport Related Expense,Diesel Oil,3202,FUELMATE LTD,A0090265,22/11/2022,AAS0330334,157.8,N,,N,N
Pendle Borough Council,Financial Services,Transport Related Expense,Diesel Oil,3202,FUELMATE LTD,A0090265,15/11/2022,AAS0330333,160.48,N,,N,N
Pendle Borough Council,Financial Services,Transport Related Expense,Diesel Oil,3202,FUELMATE LTD,A0090265,08/11/2022,AAS0330332,292.82,N,,N,N
Pendle Borough Council,Financial Services,Transport Related Expense,Diesel Oil,3202,FUELMATE LTD,A0090265,29/11/2022,AAS0330335,308.13,N,,N,N
Pendle Borough Council,Financial Services,Transport Related Expense,Diesel Oil,3202,FUELMATE LTD,A0090265,01/11/2022,AAS0330331,347.96,N,,N,N
Pendle Borough Council,Financial Services,Transport Related Expense,Diesel Oil,3202,FUELMATE LTD,A0090265,22/11/2022,AAS0330334,365.2,N,,N,N
Pendle Borough Council,Financial Services,Transport Related Expense,Diesel Oil,3202,FUELMATE LTD,A0090265,15/11/2022,AAS0330333,399.97,N,,N,N
Pendle Borough Council,Financial Services,Transport Related Expense,Diesel Oil,3202,FUELMATE LTD,A0090265,22/11/2022,AAS0330334,118.02,N,,N,N
Pendle Borough Council,Financial Services,Transport Related Expense,Diesel Oil,3202,FUELMATE LTD,A0090265,08/11/2022,AAS0330332,131.84,N,,N,N
Pendle Borough Council,Financial Services,Transport Related Expense,Diesel Oil,3202,FUELMATE LTD,A0090265,01/11/2022,AAS0330331,137.37,N,,N,N
Pendle Borough Council,Financial Services,Transport Related Expense,Diesel Oil,3202,FUELMATE LTD,A0090265,29/11/2022,AAS0330335,141.54,N,,N,N
Pendle Borough Council,Financial Services,Transport Related Expense,Diesel Oil,3202,FUELMATE LTD,A0090265,15/11/2022,AAS0330333,219.86,N,,N,N
Pendle Borough Council,Financial Services,Transport Related Expense,Diesel Oil,3202,FUELMATE LTD,A0090265,22/11/2022,AAS0330334,215.49,N,,N,N
Pendle Borough Council,Financial Services,Transport Related Expense,Diesel Oil,3202,FUELMATE LTD,A0090265,01/11/2022,AAS0330331,228.03,N,,N,N
Pendle Borough Council,Financial Services,Transport Related Expense,Diesel Oil,3202,FUELMATE LTD,A0090265,29/11/2022,AAS0330335,283.41,N,,N,N
Pendle Borough Council,Financial Services,Transport Related Expense,Diesel Oil,3202,FUELMATE LTD,A0090265,08/11/2022,AAS0330332,285.92,N,,N,N
Pendle Borough Council,Financial Services,Transport Related Expense,Diesel Oil,3202,FUELMATE LTD,A0090265,15/11/2022,AAS0330333,298.87,N,,N,N
Pendle Borough Council,Financial Services,Transport Related Expense,Diesel Oil,3202,FUELMATE LTD,A0090265,01/11/2022,AAS0330331,244.68,N,,N,N
Pendle Borough Council,Financial Services,Transport Related Expense,Diesel Oil,3202,FUELMATE LTD,A0090265,22/11/2022,AAS0330334,321.97,N,,N,N
Pendle Borough Council,Financial Services,Transport Related Expense,Diesel Oil,3202,FUELMATE LTD,A0090265,08/11/2022,AAS0330332,331.25,N,,N,N
Pendle Borough Council,Financial Services,Transport Related Expense,Diesel Oil,3202,FUELMATE LTD,A0090265,29/11/2022,AAS0330335,481.69,N,,N,N
Pendle Borough Council,Financial Services,Transport Related Expense,Diesel Oil,3202,FUELMATE LTD,A0090265,15/11/2022,AAS0330333,583.71,N,,N,N
Pendle Borough Council,Financial Services,Transport Related Expense,Diesel Oil,3202,FUELMATE LTD,A0090265,08/11/2022,AAS0330332,108.65,N,,N,N
Pendle Borough Council,Financial Services,Transport Related Expense,Diesel Oil,3202,FUELMATE LTD,A0090265,01/11/2022,AAS0330331,162.69,N,,N,N
Pendle Borough Council,Financial Services,Transport Related Expense,Diesel Oil,3202,FUELMATE LTD,A0090265,15/11/2022,AAS0330333,249.32,N,,N,N
Pendle Borough Council,Financial Services,Transport Related Expense,Diesel Oil,3202,FUELMATE LTD,A0090265,22/11/2022,AAS0330334,252.53,N,,N,N
Pendle Borough Council,Financial Services,Transport Related Expense,Diesel Oil,3202,FUELMATE LTD,A0090265,29/11/2022,AAS0330335,288.62,N,,N,N
Pendle Borough Council,Financial Services,Transport Related Expense,Diesel Oil,3202,FUELMATE LTD,A0090265,22/11/2022,AAS0330334,200.49,N,,N,N
Pendle Borough Council,Financial Services,Transport Related Expense,Diesel Oil,3202,FUELMATE LTD,A0090265,01/11/2022,AAS0330331,218.44,N,,N,N
Pendle Borough Council,Financial Services,Transport Related Expense,Diesel Oil,3202,FUELMATE LTD,A0090265,29/11/2022,AAS0330335,227.16,N,,N,N
Pendle Borough Council,Financial Services,Transport Related Expense,Diesel Oil,3202,FUELMATE LTD,A0090265,15/11/2022,AAS0330333,248.91,N,,N,N
Pendle Borough Council,Financial Services,Transport Related Expense,Diesel Oil,3202,FUELMATE LTD,A0090265,01/11/2022,AAS0330331,112.4,N,,N,N
Pendle Borough Council,Financial Services,Transport Related Expense,Diesel Oil,3202,FUELMATE LTD,A0090265,29/11/2022,AAS0330335,181.41,N,,N,N
Pendle Borough Council,Financial Services,Transport Related Expense,Diesel Oil,3202,FUELMATE LTD,A0090265,15/11/2022,AAS0330333,289.76,N,,N,N
Pendle Borough Council,Financial Services,Transport Related Expense,Diesel Oil,3202,FUELMATE LTD,A0090265,22/11/2022,AAS0330334,296.07,N,,N,N
Pendle Borough Council,Financial Services,Transport Related Expense,Diesel Oil,3202,FUELMATE LTD,A0090265,08/11/2022,AAS0330332,309.62,N,,N,N
Pendle Borough Council,Financial Services,Transport Related Expense,Diesel Oil,3202,FUELMATE LTD,A0090265,15/11/2022,AAS0330333,47.23,N,,N,N
Pendle Borough Council,Financial Services,Transport Related Expense,Diesel Oil,3202,FUELMATE LTD,A0090265,22/11/2022,AAS0330334,217.27,N,,N,N
Pendle Borough Council,Financial Services,Transport Related Expense,Diesel Oil,3202,FUELMATE LTD,A0090265,01/11/2022,AAS0330331,223.01,N,,N,N
Pendle Borough Council,Financial Services,Transport Related Expense,Diesel Oil,3202,FUELMATE LTD,A0090265,29/11/2022,AAS0330335,259.38,N,,N,N
Pendle Borough Council,Financial Services,Transport Related Expense,Diesel Oil,3202,FUELMATE LTD,A0090265,15/11/2022,AAS0330333,52.99,N,,N,N
Pendle Borough Council,Financial Services,Transport Related Expense,Diesel Oil,3202,FUELMATE LTD,A0090265,01/11/2022,AAS0330331,102.01,N,,N,N
Pendle Borough Council,Financial Services,Transport Related Expense,Diesel Oil,3202,FUELMATE LTD,A0090265,01/11/2022,AAS0330331,66.37,N,,N,N
Pendle Borough Council,Financial Services,Transport Related Expense,Diesel Oil,3202,FUELMATE LTD,A0090265,15/11/2022,AAS0330333,70.6,N,,N,N
Pendle Borough Council,Financial Services,Transport Related Expense,Diesel Oil,3202,FUELMATE LTD,A0090265,08/11/2022,AAS0330332,79.61,N,,N,N
Pendle Borough Council,Financial Services,Transport Related Expense,Diesel Oil,3202,FUELMATE LTD,A0090265,29/11/2022,AAS0330335,91.54,N,,N,N
Pendle Borough Council,Financial Services,Transport Related Expense,Diesel Oil,3202,FUELMATE LTD,A0090265,29/11/2022,AAS0330335,67.86,N,,N,N
Pendle Borough Council,Financial Services,Transport Related Expense,Diesel Oil,3202,FUELMATE LTD,A0090265,22/11/2022,AAS0330334,97.47,N,,N,N
Pendle Borough Council,Financial Services,Transport Related Expense,Diesel Oil,3202,FUELMATE LTD,A0090265,08/11/2022,AAS0330332,100.86,N,,N,N
Pendle Borough Council,Financial Services,Transport Related Expense,Diesel Oil,3202,FUELMATE LTD,A0090265,01/11/2022,AAS0330331,78.31,N,,N,N
Pendle Borough Council,Financial Services,Transport Related Expense,Diesel Oil,3202,FUELMATE LTD,A0090265,15/11/2022,AAS0330333,80.9,N,,N,N
Pendle Borough Council,Financial Services,Transport Related Expense,Diesel Oil,3202,FUELMATE LTD,A0090265,22/11/2022,AAS0330334,81.32,N,,N,N
Pendle Borough Council,Financial Services,Transport Related Expense,Diesel Oil,3202,FUELMATE LTD,A0090265,08/11/2022,AAS0330332,82.29,N,,N,N
Pendle Borough Council,Financial Services,Transport Related Expense,Diesel Oil,3202,FUELMATE LTD,A0090265,01/11/2022,AAS0330331,87.1,N,,N,N
Pendle Borough Council,Financial Services,Transport Related Expense,Diesel Oil,3202,FUELMATE LTD,A0090265,29/11/2022,AAS0330335,126.15,N,,N,N
Pendle Borough Council,Financial Services,Transport Related Expense,Diesel Oil,3202,FUELMATE LTD,A0090265,22/11/2022,AAS0330334,107.24,N,,N,N
Pendle Borough Council,Financial Services,Transport Related Expense,Diesel Oil,3202,FUELMATE LTD,A0090265,08/11/2022,AAS0330332,117.85,N,,N,N
Pendle Borough Council,Financial Services,Transport Related Expense,Diesel Oil,3202,FUELMATE LTD,A0090265,01/11/2022,AAS0330331,120.68,N,,N,N
Pendle Borough Council,Financial Services,Transport Related Expense,Diesel Oil,3202,FUELMATE LTD,A0090265,29/11/2022,AAS0330335,126.23,N,,N,N
Pendle Borough Council,Financial Services,Transport Related Expense,Diesel Oil,3202,FUELMATE LTD,A0090265,15/11/2022,AAS0330333,132.72,N,,N,N
Pendle Borough Council,Financial Services,Transport Related Expense,Diesel Oil,3202,FUELMATE LTD,A0090265,08/11/2022,AAS0330332,60.6,N,,N,N
Pendle Borough Council,Financial Services,Transport Related Expense,Diesel Oil,3202,FUELMATE LTD,A0090265,15/11/2022,AAS0330333,66.7,N,,N,N
Pendle Borough Council,Financial Services,Transport Related Expense,Diesel Oil,3202,FUELMATE LTD,A0090265,22/11/2022,AAS0330334,76.15,N,,N,N
Pendle Borough Council,Financial Services,Transport Related Expense,Diesel Oil,3202,FUELMATE LTD,A0090265,29/11/2022,AAS0330335,77.05,N,,N,N
Pendle Borough Council,Financial Services,Transport Related Expense,Diesel Oil,3202,FUELMATE LTD,A0090265,01/11/2022,AAS0330331,100.96,N,,N,N
Pendle Borough Council,Financial Services,Transport Related Expense,Diesel Oil,3202,FUELMATE LTD,A0090265,01/11/2022,AAS0330331,71.93,N,,N,N
Pendle Borough Council,Financial Services,Transport Related Expense,Diesel Oil,3202,FUELMATE LTD,A0090265,29/11/2022,AAS0330335,76.68,N,,N,N
Pendle Borough Council,Financial Services,Transport Related Expense,Diesel Oil,3202,FUELMATE LTD,A0090265,08/11/2022,AAS0330332,106.22,N,,N,N
Pendle Borough Council,Financial Services,Transport Related Expense,Diesel Oil,3202,FUELMATE LTD,A0090265,22/11/2022,AAS0330334,106.84,N,,N,N
Pendle Borough Council,Financial Services,Transport Related Expense,Diesel Oil,3202,FUELMATE LTD,A0090265,15/11/2022,AAS0330333,118.21,N,,N,N
Pendle Borough Council,Financial Services,Transport Related Expense,Diesel Oil,3202,FUELMATE LTD,A0090265,08/11/2022,AAS0330332,65.1,N,,N,N
Pendle Borough Council,Financial Services,Transport Related Expense,Diesel Oil,3202,FUELMATE LTD,A0090265,22/11/2022,AAS0330334,69.94,N,,N,N
Pendle Borough Council,Financial Services,Transport Related Expense,Diesel Oil,3202,FUELMATE LTD,A0090265,01/11/2022,AAS0330331,126.57,N,,N,N
Pendle Borough Council,Financial Services,Transport Related Expense,Diesel Oil,3202,FUELMATE LTD,A0090265,15/11/2022,AAS0330333,144.63,N,,N,N
Pendle Borough Council,Financial Services,Transport Related Expense,Diesel Oil,3202,FUELMATE LTD,A0090265,29/11/2022,AAS0330335,156.48,N,,N,N
Pendle Borough Council,Financial Services,Transport Related Expense,Diesel Oil,3202,FUELMATE LTD,A0090265,01/11/2022,AAS0330331,79.22,N,,N,N
Pendle Borough Council,Financial Services,Transport Related Expense,Diesel Oil,3202,FUELMATE LTD,A0090265,08/11/2022,AAS0330332,80.91,N,,N,N
Pendle Borough Council,Financial Services,Transport Related Expense,Diesel Oil,3202,FUELMATE LTD,A0090265,29/11/2022,AAS0330335,81.63,N,,N,N
Pendle Borough Council,Financial Services,Transport Related Expense,Diesel Oil,3202,FUELMATE LTD,A0090265,15/11/2022,AAS0330333,91.3,N,,N,N
Pendle Borough Council,Financial Services,Transport Related Expense,Diesel Oil,3202,FUELMATE LTD,A0090265,22/11/2022,AAS0330334,91.44,N,,N,N
Pendle Borough Council,Financial Services,Transport Related Expense,Diesel Oil,3202,FUELMATE LTD,A0090265,01/11/2022,AAS0330331,57.31,N,,N,N
Pendle Borough Council,Financial Services,Transport Related Expense,Diesel Oil,3202,FUELMATE LTD,A0090265,08/11/2022,AAS0330332,80.97,N,,N,N
Pendle Borough Council,Financial Services,Transport Related Expense,Diesel Oil,3202,FUELMATE LTD,A0090265,01/11/2022,AAS0330331,45.17,N,,N,N
Pendle Borough Council,Financial Services,Transport Related Expense,Diesel Oil,3202,FUELMATE LTD,A0090265,22/11/2022,AAS0330334,45.79,N,,N,N
Pendle Borough Council,Financial Services,Transport Related Expense,Diesel Oil,3202,FUELMATE LTD,A0090265,29/11/2022,AAS0330335,47.07,N,,N,N
Pendle Borough Council,Financial Services,Transport Related Expense,Diesel Oil,3202,FUELMATE LTD,A0090265,08/11/2022,AAS0330332,29.67,N,,N,N
Pendle Borough Council,Financial Services,Transport Related Expense,Diesel Oil,3202,FUELMATE LTD,A0090265,22/11/2022,AAS0330334,33.62,N,,N,N
Pendle Borough Council,Financial Services,Transport Related Expense,Diesel Oil,3202,FUELMATE LTD,A0090265,15/11/2022,AAS0330333,48.59,N,,N,N
Pendle Borough Council,Financial Services,Transport Related Expense,Diesel Oil,3202,FUELMATE LTD,A0090265,01/11/2022,AAS0330331,51.25,N,,N,N
Pendle Borough Council,Financial Services,Transport Related Expense,Diesel Oil,3202,FUELMATE LTD,A0090265,29/11/2022,AAS0330335,54.21,N,,N,N
Pendle Borough Council,Financial Services,Transport Related Expense,Diesel Oil,3202,FUELMATE LTD,A0090265,01/11/2022,AAS0330331,40,N,,N,N
Pendle Borough Council,Financial Services,Transport Related Expense,Diesel Oil,3202,FUELMATE LTD,A0090265,08/11/2022,AAS0330332,66.25,N,,N,N
Pendle Borough Council,Financial Services,Transport Related Expense,Diesel Oil,3202,FUELMATE LTD,A0090265,29/11/2022,AAS0330335,84.12,N,,N,N
Pendle Borough Council,Financial Services,Transport Related Expense,Diesel Oil,3202,FUELMATE LTD,A0090265,08/11/2022,AAS0330332,93.22,N,,N,N
Pendle Borough Council,Financial Services,Transport Related Expense,Diesel Oil,3202,FUELMATE LTD,A0090265,15/11/2022,AAS0330333,89.37,N,,N,N
Pendle Borough Council,Financial Services,Transport Related Expense,Diesel Oil,3202,FUELMATE LTD,A0090265,29/11/2022,AAS0330335,83.46,N,,N,N
Pendle Borough Council,Financial Services,Transport Related Expense,Diesel Oil,3202,FUELMATE LTD,A0090265,01/11/2022,AAS0330331,57.02,N,,N,N
Pendle Borough Council,Financial Services,Transport Related Expense,Diesel Oil,3202,FUELMATE LTD,A0090265,29/11/2022,AAS0330335,83.92,N,,N,N
Pendle Borough Council,Financial Services,Transport Related Expense,Diesel Oil,3202,FUELMATE LTD,A0090265,15/11/2022,AAS0330333,86.29,N,,N,N
Pendle Borough Council,Financial Services,Transport Related Expense,Diesel Oil,3202,FUELMATE LTD,A0090265,29/11/2022,AAS0330335,67.13,N,,N,N
Pendle Borough Council,Financial Services,Transport Related Expense,Diesel Oil,3202,FUELMATE LTD,A0090265,08/11/2022,AAS0330332,80.86,N,,N,N
Pendle Borough Council,Financial Services,Transport Related Expense,Diesel Oil,3202,FUELMATE LTD,A0090265,22/11/2022,AAS0330334,81.48,N,,N,N
Pendle Borough Council,Financial Services,Transport Related Expense,Diesel Oil,3202,FUELMATE LTD,A0090265,15/11/2022,AAS0330333,37.43,N,,N,N
Pendle Borough Council,Financial Services,Transport Related Expense,Diesel Oil,3202,FUELMATE LTD,A0090265,08/11/2022,AAS0330332,80.86,N,,N,N
Pendle Borough Council,Financial Services,Transport Related Expense,Diesel Oil,3202,FUELMATE LTD,A0090265,22/11/2022,AAS0330334,85.91,N,,N,N
Pendle Borough Council,Financial Services,Transport Related Expense,Diesel Oil,3202,FUELMATE LTD,A0090265,08/11/2022,AAS0330332,64.24,N,,N,N
Pendle Borough Council,Financial Services,Transport Related Expense,Diesel Oil,3202,FUELMATE LTD,A0090265,15/11/2022,AAS0330333,67.88,N,,N,N
Pendle Borough Council,Financial Services,Transport Related Expense,Diesel Oil,3202,FUELMATE LTD,A0090265,01/11/2022,AAS0330331,78.53,N,,N,N
Pendle Borough Council,Financial Services,Transport Related Expense,Diesel Oil,3202,FUELMATE LTD,A0090265,29/11/2022,AAS0330335,81.09,N,,N,N
Pendle Borough Council,Financial Services,Transport Related Expense,Diesel Oil,3202,FUELMATE LTD,A0090265,08/11/2022,AAS0330332,83.98,N,,N,N
Pendle Borough Council,Financial Services,Transport Related Expense,Diesel Oil,3202,FUELMATE LTD,A0090265,01/11/2022,AAS0330331,48.92,N,,N,N
Pendle Borough Council,Financial Services,Transport Related Expense,Diesel Oil,3202,FUELMATE LTD,A0090265,22/11/2022,AAS0330334,49.51,N,,N,N
Pendle Borough Council,Financial Services,Transport Related Expense,Diesel Oil,3202,FUELMATE LTD,A0090265,08/11/2022,AAS0330332,56.62,N,,N,N
Pendle Borough Council,Financial Services,Transport Related Expense,Diesel Oil,3202,FUELMATE LTD,A0090265,22/11/2022,AAS0330334,70.88,N,,N,N
Pendle Borough Council,Financial Services,Transport Related Expense,Diesel Oil,3202,FUELMATE LTD,A0090265,15/11/2022,AAS0330333,127.44,N,,N,N
Pendle Borough Council,Planning & Building Control,Supplies and Services,Grants/Contributions,4739,LOVE LOCAL SOLUTIONS LIMITED,A0090486,17/11/2022,PBC0329972,625,N,,N,N
Pendle Borough Council,Engineering & Special Projects,Supplies and Services,Other Expenses,4705,COLNE CRICKET CLUB,A0090696,03/11/2022,HED0329517,2000,N,,N,N
Pendle Borough Council,Revenues Services,Supplies and Services,Consultants Fees,4401,PS&P LTD,A0090720,24/11/2022,TRE0330091,14,N,,N,N
Pendle Borough Council,Engineering & Special Projects,Supplies and Services,Other Expenses,4705,"DEMENTIA POSITIVE, PENDLE",A0090811,24/11/2022,HED0330031,300,N,,N,N
Pendle Borough Council,Property Services,Capital Costs,Capital : Payments,CD14,H2O FLOWTECH LIMITED,A0090845,03/11/2022,EST0329599,2727.04,N,,N,N
Pendle Borough Council,Operational Services,,Stock : Purchases,PJ01,REDACT - PERSONAL DATA,A0091009,24/11/2022,OPS0329981,30.5,N,,N,N
Pendle Borough Council,Engineering & Special Projects,Premises Related Expense,Grounds : R & M : Day to Day : Routine,2101,DIRTWORKS BMX,A0091056,10/11/2022,HED0329727,650,N,,N,N
Pendle Borough Council,Engineering & Special Projects,Supplies and Services,Renewals & Repairs Fund,4801,DIRTWORKS BMX,A0091056,10/11/2022,HED0329726,1150,N,,N,N
Pendle Borough Council,Engineering & Special Projects,Supplies and Services,Renewals & Repairs Fund,4801,DIRTWORKS BMX,A0091056,10/11/2022,HED0329726,1800,N,,N,N
Pendle Borough Council,Parks & Recreation Services,Premises Related Expense,Grounds : R & M : Day to Day : Routine,2101,DEFIBSHOP - IMPERATIVE TRAINING LTD,A0091291,24/11/2022,PCO0329971,230,N,,N,N
Pendle Borough Council,Engineering & Special Projects,Capital Costs,Capital : Payments,CD14,FLOOD PROTECTION SOLUTIONS LIMITED,A0091331,24/11/2022,HED0330047,5033,N,,N,N
Pendle Borough Council,Engineering & Special Projects,Supplies and Services,Consultants Fees,4401,SHERGROUP LIMITED,A0091343,10/11/2022,HED0329573,75,N,,N,N
Pendle Borough Council,Operational Services,Transport Related Expense,Diesel Oil,3202,WCF LIMITED,A0091385,03/11/2022,OPS0329539,730,N,,N,N
Pendle Borough Council,Operational Services,,Fees Income : Non-VATable,9302,PERMISERV LIMITED,A0091396,10/11/2022,OPS0329675,55.12,N,,N,N
Pendle Borough Council,Planning & Building Control,,Fees Income : Non-VATable,9302,PORTALPLANQUEST LIMITED,A0091554,24/11/2022,PBC0330045,132,N,,N,N
Pendle Borough Council,Information Services,Capital Costs,Capital : Payments,CD14,SWITCHSHOP LIMITED,A0091555,24/11/2022,ITS0330061,340.8,N,,N,N
Pendle Borough Council,Parks & Recreation Services,Agency Staff,Emp : Basic Wages,1001,NW RECRUITMENT SERVICES LIMITED,A0091588,10/11/2022,PCO0329670,266.91,N,,N,N
Pendle Borough Council,Parks & Recreation Services,Agency Staff,Emp : Basic Wages,1001,NW RECRUITMENT SERVICES LIMITED,A0091588,10/11/2022,PCO0329670,499.69,N,,N,N
Pendle Borough Council,Parks & Recreation Services,Agency Staff,Emp : Basic Wages,1001,NW RECRUITMENT SERVICES LIMITED,A0091588,10/11/2022,PCO0329670,628.53,N,,N,N
Pendle Borough Council,Parks & Recreation Services,Agency Staff,Emp : Basic Wages,1001,NW RECRUITMENT SERVICES LIMITED,A0091588,10/11/2022,PCO0329670,753.99,N,,N,N
Pendle Borough Council,Parks & Recreation Services,Agency Staff,Emp : Basic Wages,1001,NW RECRUITMENT SERVICES LIMITED,A0091588,10/11/2022,PCO0329670,1109.46,N,,N,N
Pendle Borough Council,Parks & Recreation Services,Agency Staff,Emp : Basic Wages,1001,NW RECRUITMENT SERVICES LIMITED,A0091588,24/11/2022,PCO0329968,1565.48,N,,N,N
Pendle Borough Council,Parks & Recreation Services,Agency Staff,Emp : Basic Wages,1001,NW RECRUITMENT SERVICES LIMITED,A0091588,10/11/2022,PCO0329668,2503.35,N,,N,N
Pendle Borough Council,Parks & Recreation Services,Agency Staff,Emp : Basic Wages,1001,NW RECRUITMENT SERVICES LIMITED,A0091588,10/11/2022,PCO0329669,2589.23,N,,N,N
Pendle Borough Council,Parks & Recreation Services,Agency Staff,Emp : Agency Wages,1004,NW RECRUITMENT SERVICES LIMITED,A0091588,24/11/2022,PCO0330033,66.25,N,,N,N
Pendle Borough Council,Parks & Recreation Services,Agency Staff,Emp : Agency Wages,1004,NW RECRUITMENT SERVICES LIMITED,A0091588,24/11/2022,PCO0330018,139.13,N,,N,N
Pendle Borough Council,Parks & Recreation Services,Agency Staff,Emp : Agency Wages,1004,NW RECRUITMENT SERVICES LIMITED,A0091588,10/11/2022,PCO0329667,304.75,N,,N,N
Pendle Borough Council,Operational Services,Agency Staff,Emp : Agency Wages,1004,NW RECRUITMENT SERVICES LIMITED,A0091588,24/11/2022,OPS0330024,2342.71,N,,N,N
Pendle Borough Council,Operational Services,Agency Staff,Emp : Agency Wages,1004,NW RECRUITMENT SERVICES LIMITED,A0091588,24/11/2022,OPS0329963,3192.21,N,,N,N
Pendle Borough Council,Operational Services,Agency Staff,Emp : Agency Wages,1004,NW RECRUITMENT SERVICES LIMITED,A0091588,24/11/2022,OPS0330025,3446.38,N,,N,N
Pendle Borough Council,Operational Services,Agency Staff,Emp : Agency Wages,1004,NW RECRUITMENT SERVICES LIMITED,A0091588,24/11/2022,OPS0329962,3572.28,N,,N,N
Pendle Borough Council,Operational Services,Agency Staff,Emp : Agency Wages,1004,NW RECRUITMENT SERVICES LIMITED,A0091588,24/11/2022,OPS0330026,3874.86,N,,N,N
Pendle Borough Council,Operational Services,Agency Staff,Emp : Agency Wages,1004,NW RECRUITMENT SERVICES LIMITED,A0091588,24/11/2022,OPS0329962,660.66,N,,N,N
Pendle Borough Council,Operational Services,Agency Staff,Emp : Agency Wages,1004,NW RECRUITMENT SERVICES LIMITED,A0091588,24/11/2022,OPS0330026,1284.47,N,,N,N
Pendle Borough Council,Operational Services,Agency Staff,Emp : Agency Wages,1004,NW RECRUITMENT SERVICES LIMITED,A0091588,24/11/2022,OPS0329963,1497.39,N,,N,N
Pendle Borough Council,Operational Services,Agency Staff,Emp : Agency Wages,1004,NW RECRUITMENT SERVICES LIMITED,A0091588,24/11/2022,OPS0330025,1569.58,N,,N,N
Pendle Borough Council,Operational Services,Agency Staff,Emp : Agency Wages,1004,NW RECRUITMENT SERVICES LIMITED,A0091588,24/11/2022,OPS0330024,2045.23,N,,N,N
Pendle Borough Council,Operational Services,Agency Staff,Emp : Agency Wages,1004,NW RECRUITMENT SERVICES LIMITED,A0091588,24/11/2022,OPS0329962,434.07,N,,N,N
Pendle Borough Council,Operational Services,Agency Staff,Emp : Agency Wages,1004,NW RECRUITMENT SERVICES LIMITED,A0091588,24/11/2022,OPS0330025,672.99,N,,N,N
Pendle Borough Council,Operational Services,Agency Staff,Emp : Agency Wages,1004,NW RECRUITMENT SERVICES LIMITED,A0091588,24/11/2022,OPS0330024,792.63,N,,N,N
Pendle Borough Council,Operational Services,Agency Staff,Emp : Agency Wages,1004,NW RECRUITMENT SERVICES LIMITED,A0091588,24/11/2022,OPS0329963,967.9,N,,N,N
Pendle Borough Council,Operational Services,Agency Staff,Emp : Agency Wages,1004,NW RECRUITMENT SERVICES LIMITED,A0091588,24/11/2022,OPS0330026,981.11,N,,N,N
Pendle Borough Council,Parks & Recreation Services,Premises Related Expense,Bldgs : R & M : Day To Day,2001,NW RECRUITMENT SERVICES LIMITED,A0091588,24/11/2022,PCO0330033,59.63,N,,N,N
Pendle Borough Council,Parks & Recreation Services,Premises Related Expense,Bldgs : R & M : Day To Day,2001,NW RECRUITMENT SERVICES LIMITED,A0091588,10/11/2022,PCO0329667,66.25,N,,N,N
Pendle Borough Council,Parks & Recreation Services,Supplies and Services,EFM : Other Equipment,4003,NW RECRUITMENT SERVICES LIMITED,A0091588,10/11/2022,PCO0329668,486.35,N,,N,N
Pendle Borough Council,Parks & Recreation Services,Supplies and Services,EFM : Other Equipment,4003,NW RECRUITMENT SERVICES LIMITED,A0091588,10/11/2022,PCO0329669,486.35,N,,N,N
Pendle Borough Council,Parks & Recreation Services,Supplies and Services,EFM : Other Equipment,4003,NW RECRUITMENT SERVICES LIMITED,A0091588,24/11/2022,PCO0329968,486.35,N,,N,N
Pendle Borough Council,Operational Services,Transport Related Expense,Tprt : Repairs : General,3105,GO PLANT FLEET SERVICES LIMITED,A0091600,10/11/2022,OPS0329692,20.3,N,,N,N
Pendle Borough Council,Operational Services,Transport Related Expense,Tprt : Repairs : General,3105,GO PLANT FLEET SERVICES LIMITED,A0091600,10/11/2022,OPS0329687,120.35,N,,N,N
Pendle Borough Council,Operational Services,Transport Related Expense,Tprt : Repairs : General,3105,GO PLANT FLEET SERVICES LIMITED,A0091600,10/11/2022,OPS0329652,315.99,N,,N,N
Pendle Borough Council,Operational Services,Transport Related Expense,Tprt : Repairs : General,3105,GO PLANT FLEET SERVICES LIMITED,A0091600,10/11/2022,OPS0329689,101,N,,N,N
Pendle Borough Council,Operational Services,Transport Related Expense,Tprt : Repairs : General,3105,GO PLANT FLEET SERVICES LIMITED,A0091600,10/11/2022,OPS0329680,300.29,N,,N,N
Pendle Borough Council,Operational Services,Transport Related Expense,Tprt : Repairs : General,3105,GO PLANT FLEET SERVICES LIMITED,A0091600,10/11/2022,OPS0329653,44.65,N,,N,N
Pendle Borough Council,Operational Services,Transport Related Expense,Tprt : Repairs : General,3105,GO PLANT FLEET SERVICES LIMITED,A0091600,10/11/2022,OPS0329655,917.05,N,,N,N
Pendle Borough Council,Operational Services,Transport Related Expense,Tprt : Repairs : General,3105,GO PLANT FLEET SERVICES LIMITED,A0091600,10/11/2022,OPS0329685,1042.17,N,,N,N
Pendle Borough Council,Operational Services,Transport Related Expense,Tprt : Repairs : General,3105,GO PLANT FLEET SERVICES LIMITED,A0091600,10/11/2022,OPS0329686,186.48,N,,N,N
Pendle Borough Council,Operational Services,Transport Related Expense,Tprt : Repairs : General,3105,GO PLANT FLEET SERVICES LIMITED,A0091600,10/11/2022,OPS0329682,1146.87,N,,N,N
Pendle Borough Council,Operational Services,Transport Related Expense,Tprt : Repairs : General,3105,GO PLANT FLEET SERVICES LIMITED,A0091600,10/11/2022,OPS0329690,98.72,N,,N,N
Pendle Borough Council,Operational Services,Transport Related Expense,Tprt : Repairs : General,3105,GO PLANT FLEET SERVICES LIMITED,A0091600,10/11/2022,OPS0329654,100.8,N,,N,N
Pendle Borough Council,Operational Services,Transport Related Expense,Tprt : Repairs : General,3105,GO PLANT FLEET SERVICES LIMITED,A0091600,10/11/2022,OPS0329688,1042.17,N,,N,N
Pendle Borough Council,Operational Services,Transport Related Expense,Tprt : Repairs : General,3105,GO PLANT FLEET SERVICES LIMITED,A0091600,10/11/2022,OPS0329694,34.24,N,,N,N
Pendle Borough Council,Operational Services,Transport Related Expense,Tprt : Repairs : General,3105,GO PLANT FLEET SERVICES LIMITED,A0091600,10/11/2022,OPS0329693,339.93,N,,N,N
Pendle Borough Council,Operational Services,Transport Related Expense,Tprt : Repairs : General,3105,GO PLANT FLEET SERVICES LIMITED,A0091600,10/11/2022,OPS0329695,233.13,N,,N,N
Pendle Borough Council,Operational Services,Transport Related Expense,Tprt : Repairs : General,3105,GO PLANT FLEET SERVICES LIMITED,A0091600,10/11/2022,OPS0329679,95.85,N,,N,N
Pendle Borough Council,Operational Services,Transport Related Expense,Tprt : Repairs : General,3105,GO PLANT FLEET SERVICES LIMITED,A0091600,10/11/2022,OPS0329681,84.39,N,,N,N
Pendle Borough Council,Operational Services,Transport Related Expense,Tprt : Repairs : General,3105,GO PLANT FLEET SERVICES LIMITED,A0091600,10/11/2022,OPS0328217,40.2,N,,N,N
Pendle Borough Council,Operational Services,Transport Related Expense,Tprt : Repairs : General,3105,GO PLANT FLEET SERVICES LIMITED,A0091600,10/11/2022,OPS0329700,526.29,N,,N,N
Pendle Borough Council,Operational Services,Transport Related Expense,Tprt : Repairs : General,3105,GO PLANT FLEET SERVICES LIMITED,A0091600,17/11/2022,OPS0329923,328.51,N,,N,N
Pendle Borough Council,Operational Services,Transport Related Expense,Tprt : Repairs : General,3105,GO PLANT FLEET SERVICES LIMITED,A0091600,17/11/2022,OPS0329921,490.19,N,,N,N
Pendle Borough Council,Operational Services,Transport Related Expense,Tyres,3204,GO PLANT FLEET SERVICES LIMITED,A0091600,10/11/2022,OPS0329691,312.88,N,,N,N
Pendle Borough Council,Operational Services,Transport Related Expense,Tyres,3204,GO PLANT FLEET SERVICES LIMITED,A0091600,10/11/2022,OPS0329707,131.44,N,,N,N
Pendle Borough Council,Operational Services,Transport Related Expense,Tyres,3204,GO PLANT FLEET SERVICES LIMITED,A0091600,10/11/2022,OPS0328218,108.21,N,,N,N
Pendle Borough Council,Operational Services,Transport Related Expense,Tyres,3204,GO PLANT FLEET SERVICES LIMITED,A0091600,10/11/2022,OPS0329706,108.31,N,,N,N
Pendle Borough Council,Operational Services,Transport Related Expense,Tyres,3204,GO PLANT FLEET SERVICES LIMITED,A0091600,10/11/2022,OPS0329705,100.28,N,,N,N
Pendle Borough Council,Operational Services,Transport Related Expense,Tyres,3204,GO PLANT FLEET SERVICES LIMITED,A0091600,10/11/2022,OPS0329703,28.73,N,,N,N
Pendle Borough Council,Operational Services,Transport Related Expense,Tyres,3204,GO PLANT FLEET SERVICES LIMITED,A0091600,10/11/2022,OPS0329702,108.31,N,,N,N
Pendle Borough Council,Operational Services,Transport Related Expense,Tyres,3204,GO PLANT FLEET SERVICES LIMITED,A0091600,10/11/2022,OPS0329704,108.31,N,,N,N
Pendle Borough Council,Operational Services,Transport Related Expense,Tyres,3204,GO PLANT FLEET SERVICES LIMITED,A0091600,10/11/2022,OPS0329701,120.78,N,,N,N
Pendle Borough Council,Operational Services,Transport Related Expense,Tyres,3204,GO PLANT FLEET SERVICES LIMITED,A0091600,10/11/2022,OPS0329699,126.18,N,,N,N
Pendle Borough Council,Operational Services,Transport Related Expense,Tyres,3204,GO PLANT FLEET SERVICES LIMITED,A0091600,10/11/2022,OPS0329698,250.14,N,,N,N
Pendle Borough Council,Operational Services,Transport Related Expense,Tyres,3204,GO PLANT FLEET SERVICES LIMITED,A0091600,10/11/2022,OPS0329696,103.37,N,,N,N
Pendle Borough Council,Operational Services,Transport Related Expense,Tyres,3204,GO PLANT FLEET SERVICES LIMITED,A0091600,10/11/2022,OPS0329697,125.04,N,,N,N
Pendle Borough Council,Operational Services,Transport Related Expense,Tyres,3204,GO PLANT FLEET SERVICES LIMITED,A0091600,17/11/2022,OPS0329922,136.23,N,,N,N
Pendle Borough Council,Operational Services,Transport Related Expense,Tprt : Annual Hire Charge,3601,GO PLANT FLEET SERVICES LIMITED,A0091600,10/11/2022,OPS0329722,3540.62,N,,N,N
Pendle Borough Council,Operational Services,Transport Related Expense,Tprt : Annual Hire Charge,3601,GO PLANT FLEET SERVICES LIMITED,A0091600,10/11/2022,OPS0329722,3540.62,N,,N,N
Pendle Borough Council,Operational Services,Transport Related Expense,Tprt : Annual Hire Charge,3601,GO PLANT FLEET SERVICES LIMITED,A0091600,10/11/2022,OPS0329722,3540.62,N,,N,N
Pendle Borough Council,Operational Services,Transport Related Expense,Tprt : Annual Hire Charge,3601,GO PLANT FLEET SERVICES LIMITED,A0091600,10/11/2022,OPS0329722,3540.62,N,,N,N
Pendle Borough Council,Operational Services,Transport Related Expense,Tprt : Annual Hire Charge,3601,GO PLANT FLEET SERVICES LIMITED,A0091600,10/11/2022,OPS0329722,3540.62,N,,N,N
Pendle Borough Council,Operational Services,Transport Related Expense,Tprt : Annual Hire Charge,3601,GO PLANT FLEET SERVICES LIMITED,A0091600,10/11/2022,OPS0329722,3344.64,N,,N,N
Pendle Borough Council,Operational Services,Transport Related Expense,Tprt : Annual Hire Charge,3601,GO PLANT FLEET SERVICES LIMITED,A0091600,10/11/2022,OPS0329683,100,N,,N,N
Pendle Borough Council,Operational Services,Transport Related Expense,Tprt : Annual Hire Charge,3601,GO PLANT FLEET SERVICES LIMITED,A0091600,10/11/2022,OPS0329722,3540.62,N,,N,N
Pendle Borough Council,Operational Services,Transport Related Expense,Tprt : Annual Hire Charge,3601,GO PLANT FLEET SERVICES LIMITED,A0091600,10/11/2022,OPS0329722,3540.62,N,,N,N
Pendle Borough Council,Operational Services,Transport Related Expense,Tprt : Annual Hire Charge,3601,GO PLANT FLEET SERVICES LIMITED,A0091600,10/11/2022,OPS0329722,3549.74,N,,N,N
Pendle Borough Council,Operational Services,Transport Related Expense,Tprt : Annual Hire Charge,3601,GO PLANT FLEET SERVICES LIMITED,A0091600,10/11/2022,OPS0329722,3549.74,N,,N,N
Pendle Borough Council,Operational Services,Transport Related Expense,Tprt : Annual Hire Charge,3601,GO PLANT FLEET SERVICES LIMITED,A0091600,10/11/2022,OPS0329722,3549.74,N,,N,N
Pendle Borough Council,Operational Services,Transport Related Expense,Tprt : Annual Hire Charge,3601,GO PLANT FLEET SERVICES LIMITED,A0091600,10/11/2022,OPS0329722,3497.07,N,,N,N
Pendle Borough Council,Operational Services,Transport Related Expense,Tprt : Annual Hire Charge,3601,GO PLANT FLEET SERVICES LIMITED,A0091600,10/11/2022,OPS0329722,3393,N,,N,N
Pendle Borough Council,Operational Services,Transport Related Expense,Tprt : Annual Hire Charge,3601,GO PLANT FLEET SERVICES LIMITED,A0091600,10/11/2022,OPS0329722,2654.17,N,,N,N
Pendle Borough Council,Operational Services,Transport Related Expense,Tprt : Annual Hire Charge,3601,GO PLANT FLEET SERVICES LIMITED,A0091600,10/11/2022,OPS0329722,1981.53,N,,N,N
Pendle Borough Council,Operational Services,Transport Related Expense,Tprt : Annual Hire Charge,3601,GO PLANT FLEET SERVICES LIMITED,A0091600,10/11/2022,OPS0329722,1981.53,N,,N,N
Pendle Borough Council,Operational Services,Transport Related Expense,Tprt : Annual Hire Charge,3601,GO PLANT FLEET SERVICES LIMITED,A0091600,10/11/2022,OPS0329722,1981.53,N,,N,N
Pendle Borough Council,Operational Services,Transport Related Expense,Tprt : Annual Hire Charge,3601,GO PLANT FLEET SERVICES LIMITED,A0091600,10/11/2022,OPS0329722,1981.53,N,,N,N
Pendle Borough Council,Operational Services,Transport Related Expense,Tprt : Annual Hire Charge,3601,GO PLANT FLEET SERVICES LIMITED,A0091600,10/11/2022,OPS0329722,1981.53,N,,N,N
Pendle Borough Council,Operational Services,Transport Related Expense,Tprt : Annual Hire Charge,3601,GO PLANT FLEET SERVICES LIMITED,A0091600,10/11/2022,OPS0329722,509.54,N,,N,N
Pendle Borough Council,Operational Services,Transport Related Expense,Tprt : Annual Hire Charge,3601,GO PLANT FLEET SERVICES LIMITED,A0091600,10/11/2022,OPS0329722,509.54,N,,N,N
Pendle Borough Council,Operational Services,Transport Related Expense,Tprt : Annual Hire Charge,3601,GO PLANT FLEET SERVICES LIMITED,A0091600,10/11/2022,OPS0329656,885.67,N,,N,N
Pendle Borough Council,Operational Services,Transport Related Expense,Tprt : Annual Hire Charge,3601,GO PLANT FLEET SERVICES LIMITED,A0091600,10/11/2022,OPS0329722,598.81,N,,N,N
Pendle Borough Council,Operational Services,Transport Related Expense,Tprt : Annual Hire Charge,3601,GO PLANT FLEET SERVICES LIMITED,A0091600,10/11/2022,OPS0329722,650,N,,N,N
Pendle Borough Council,Operational Services,Transport Related Expense,Tprt : Annual Hire Charge,3601,GO PLANT FLEET SERVICES LIMITED,A0091600,10/11/2022,OPS0329722,598.81,N,,N,N
Pendle Borough Council,Operational Services,Transport Related Expense,Tprt : Annual Hire Charge,3601,GO PLANT FLEET SERVICES LIMITED,A0091600,10/11/2022,OPS0329722,598.81,N,,N,N
Pendle Borough Council,Operational Services,Transport Related Expense,Tprt : Annual Hire Charge,3601,GO PLANT FLEET SERVICES LIMITED,A0091600,10/11/2022,OPS0329722,650,N,,N,N
Pendle Borough Council,Operational Services,Transport Related Expense,Tprt : Annual Hire Charge,3601,GO PLANT FLEET SERVICES LIMITED,A0091600,10/11/2022,OPS0329722,598.81,N,,N,N
Pendle Borough Council,Operational Services,Transport Related Expense,Tprt : Annual Hire Charge,3601,GO PLANT FLEET SERVICES LIMITED,A0091600,10/11/2022,OPS0329722,239.53,N,,N,N
Pendle Borough Council,Operational Services,Transport Related Expense,Tprt : Annual Hire Charge,3601,GO PLANT FLEET SERVICES LIMITED,A0091600,10/11/2022,OPS0329722,239.53,N,,N,N
Pendle Borough Council,Operational Services,Transport Related Expense,Tprt : Annual Hire Charge,3601,GO PLANT FLEET SERVICES LIMITED,A0091600,10/11/2022,OPS0329722,239.53,N,,N,N
Pendle Borough Council,Operational Services,Transport Related Expense,Tprt : Annual Hire Charge,3601,GO PLANT FLEET SERVICES LIMITED,A0091600,10/11/2022,OPS0329722,239.53,N,,N,N
Pendle Borough Council,Operational Services,Transport Related Expense,Tprt : Annual Hire Charge,3601,GO PLANT FLEET SERVICES LIMITED,A0091600,10/11/2022,OPS0329722,239.53,N,,N,N
Pendle Borough Council,Operational Services,Transport Related Expense,Tprt : Annual Hire Charge,3601,GO PLANT FLEET SERVICES LIMITED,A0091600,10/11/2022,OPS0329722,239.53,N,,N,N
Pendle Borough Council,Operational Services,Transport Related Expense,Tprt : Annual Hire Charge,3601,GO PLANT FLEET SERVICES LIMITED,A0091600,10/11/2022,OPS0329722,239.53,N,,N,N
Pendle Borough Council,Operational Services,Transport Related Expense,Tprt : Annual Hire Charge,3601,GO PLANT FLEET SERVICES LIMITED,A0091600,10/11/2022,OPS0329722,339.69,N,,N,N
Pendle Borough Council,Operational Services,Transport Related Expense,Tprt : Annual Hire Charge,3601,GO PLANT FLEET SERVICES LIMITED,A0091600,10/11/2022,OPS0329684,100,N,,N,N
Pendle Borough Council,Operational Services,Transport Related Expense,Tprt : Annual Hire Charge,3601,GO PLANT FLEET SERVICES LIMITED,A0091600,17/11/2022,OPS0329925,100,N,,N,N
Pendle Borough Council,Operational Services,Transport Related Expense,Tprt : Annual Hire Charge,3601,GO PLANT FLEET SERVICES LIMITED,A0091600,10/11/2022,OPS0329722,592.28,N,,N,N
Pendle Borough Council,Operational Services,Transport Related Expense,Tprt : Annual Hire Charge,3601,GO PLANT FLEET SERVICES LIMITED,A0091600,10/11/2022,OPS0329722,592.28,N,,N,N
Pendle Borough Council,Operational Services,Transport Related Expense,Tprt : Annual Hire Charge,3601,GO PLANT FLEET SERVICES LIMITED,A0091600,10/11/2022,OPS0329722,592.28,N,,N,N
Pendle Borough Council,Operational Services,Transport Related Expense,Tprt : Annual Hire Charge,3601,GO PLANT FLEET SERVICES LIMITED,A0091600,10/11/2022,OPS0329722,592.28,N,,N,N
Pendle Borough Council,Operational Services,Transport Related Expense,Tprt : Annual Hire Charge,3601,GO PLANT FLEET SERVICES LIMITED,A0091600,10/11/2022,OPS0329722,592.28,N,,N,N
Pendle Borough Council,Operational Services,Transport Related Expense,Tprt : Annual Hire Charge,3601,GO PLANT FLEET SERVICES LIMITED,A0091600,10/11/2022,OPS0329722,535.67,N,,N,N
Pendle Borough Council,Operational Services,Transport Related Expense,Tprt : Annual Hire Charge,3601,GO PLANT FLEET SERVICES LIMITED,A0091600,10/11/2022,OPS0329722,239.53,N,,N,N
Pendle Borough Council,Operational Services,Transport Related Expense,Tprt : Annual Hire Charge,3601,GO PLANT FLEET SERVICES LIMITED,A0091600,10/11/2022,OPS0329722,496.4,N,,N,N
Pendle Borough Council,Operational Services,Transport Related Expense,Tprt : Annual Hire Charge,3601,GO PLANT FLEET SERVICES LIMITED,A0091600,10/11/2022,OPS0329722,496.4,N,,N,N
Pendle Borough Council,Operational Services,Transport Related Expense,Tprt : Annual Hire Charge,3601,GO PLANT FLEET SERVICES LIMITED,A0091600,17/11/2022,OPS0329926,2600,N,,N,N
Pendle Borough Council,Engineering & Special Projects,Supplies and Services,Publicity & advertisement,4704,CMS LIVE,A0091625,17/11/2022,HED0329801,15,N,,N,N
Pendle Borough Council,Parks & Recreation Services,Premises Related Expense,Grounds : R & M : Day to Day : Routine,2101,A&G LANDSCAPES & GROUNDWORKS LIMITED,A0091675,17/11/2022,PCO0329913,500,N,,N,N
Pendle Borough Council,Parks & Recreation Services,Premises Related Expense,Grounds : R & M : Day to Day : Routine,2101,A&G LANDSCAPES & GROUNDWORKS LIMITED,A0091675,17/11/2022,PCO0329913,745,N,,N,N
Pendle Borough Council,Parks & Recreation Services,Premises Related Expense,Grounds : R & M : Day to Day : Routine,2101,A&G LANDSCAPES & GROUNDWORKS LIMITED,A0091675,17/11/2022,PCO0329897,125,N,,N,N
Pendle Borough Council,Parks & Recreation Services,Premises Related Expense,Grounds : R & M : Day to Day : Routine,2101,A&G LANDSCAPES & GROUNDWORKS LIMITED,A0091675,17/11/2022,PCO0329897,250,N,,N,N
Pendle Borough Council,Parks & Recreation Services,Premises Related Expense,Grounds : R & M : Day to Day : Routine,2101,A&G LANDSCAPES & GROUNDWORKS LIMITED,A0091675,17/11/2022,PCO0329897,125,N,,N,N
Pendle Borough Council,Parks & Recreation Services,Premises Related Expense,Grounds : R & M : Day to Day : Routine,2101,A&G LANDSCAPES & GROUNDWORKS LIMITED,A0091675,17/11/2022,PCO0329897,250,N,,N,N
Pendle Borough Council,Engineering & Special Projects,Premises Related Expense,Grounds : R & M : Day to Day : Routine,2101,A&G LANDSCAPES & GROUNDWORKS LIMITED,A0091675,17/11/2022,HED0329932,100,N,,N,N
Pendle Borough Council,Engineering & Special Projects,Premises Related Expense,Grounds : R & M : Day to Day : Routine,2101,A&G LANDSCAPES & GROUNDWORKS LIMITED,A0091675,10/11/2022,HED0329735,250,N,,N,N
Pendle Borough Council,Engineering & Special Projects,Premises Related Expense,Grounds : R & M : Day to Day : Routine,2101,A&G LANDSCAPES & GROUNDWORKS LIMITED,A0091675,10/11/2022,HED0329735,375,N,,N,N
Pendle Borough Council,Engineering & Special Projects,Capital Costs,Capital : Payments,CD14,A&G LANDSCAPES & GROUNDWORKS LIMITED,A0091675,24/11/2022,HED4006640,-3769.58,N,,N,N
Pendle Borough Council,Engineering & Special Projects,Capital Costs,Capital : Payments,CD14,A&G LANDSCAPES & GROUNDWORKS LIMITED,A0091675,24/11/2022,HED0330101,1000,N,,N,N
Pendle Borough Council,Engineering & Special Projects,Capital Costs,Capital : Payments,cd14,A&G LANDSCAPES & GROUNDWORKS LIMITED,A0091675,24/11/2022,HED0330101,2769.58,N,,N,N
Pendle Borough Council,Engineering & Special Projects,Capital Costs,Capital : Payments,CD14,A&G LANDSCAPES & GROUNDWORKS LIMITED,A0091675,17/11/2022,HED0329927,3769.58,N,,N,N
Pendle Borough Council,Information Services,Supplies and Services,Other Expenses,4705,ESRI (UK) LIMITED,A0091766,24/11/2022,ITS0330062,618,N,,N,N
Pendle Borough Council,Engineering & Special Projects,Agency Staff,Emp : Agency Wages,1004,THE OYSTER PARTNERSHIP LIMITED,A0091781,03/11/2022,HED4006617,-200,N,,N,N
Pendle Borough Council,Engineering & Special Projects,Agency Staff,Emp : Agency Wages,1004,THE OYSTER PARTNERSHIP LIMITED,A0091781,03/11/2022,HED0329530,1222.06,N,,N,N
Pendle Borough Council,Engineering & Special Projects,Agency Staff,Emp : Agency Wages,1004,THE OYSTER PARTNERSHIP LIMITED,A0091781,03/11/2022,HED0329533,1366.88,N,,N,N
Pendle Borough Council,Engineering & Special Projects,Agency Staff,Emp : Agency Wages,1004,THE OYSTER PARTNERSHIP LIMITED,A0091781,10/11/2022,HED0329602,1414.11,N,,N,N
Pendle Borough Council,Engineering & Special Projects,Agency Staff,Emp : Agency Wages,1004,THE OYSTER PARTNERSHIP LIMITED,A0091781,17/11/2022,HED0329815,1432.49,N,,N,N
Pendle Borough Council,Engineering & Special Projects,Agency Staff,Emp : Agency Wages,1004,THE OYSTER PARTNERSHIP LIMITED,A0091781,24/11/2022,HED0329983,1443.42,N,,N,N
Pendle Borough Council,Engineering & Special Projects,Agency Staff,Emp : Agency Wages,1004,THE OYSTER PARTNERSHIP LIMITED,A0091781,03/11/2022,HED0329532,1519.97,N,,N,N
Pendle Borough Council,Engineering & Special Projects,Agency Staff,Emp : Agency Wages,1004,THE OYSTER PARTNERSHIP LIMITED,A0091781,10/11/2022,HED0329601,1551.11,N,,N,N
Pendle Borough Council,Engineering & Special Projects,Agency Staff,Emp : Agency Wages,1004,THE OYSTER PARTNERSHIP LIMITED,A0091781,24/11/2022,HED0329984,1558.6,N,,N,N
Pendle Borough Council,Engineering & Special Projects,Agency Staff,Emp : Agency Wages,1004,THE OYSTER PARTNERSHIP LIMITED,A0091781,03/11/2022,HED0329531,1575.11,N,,N,N
Pendle Borough Council,Engineering & Special Projects,Agency Staff,Emp : Agency Wages,1004,THE OYSTER PARTNERSHIP LIMITED,A0091781,17/11/2022,HED0329814,1584.79,N,,N,N
Pendle Borough Council,Engineering & Special Projects,Capital Costs,Capital : Salaries,CD13,G2 RECRUITMENT SOLUTIONS,A0091827,03/11/2022,HED0329534,1332,N,,N,N
Pendle Borough Council,Engineering & Special Projects,Capital Costs,Capital : Salaries,CD13,G2 RECRUITMENT SOLUTIONS,A0091827,10/11/2022,HED0329600,1332,N,,N,N
Pendle Borough Council,Engineering & Special Projects,Capital Costs,Capital : Salaries,CD13,G2 RECRUITMENT SOLUTIONS,A0091827,17/11/2022,HED0329816,1332,N,,N,N
Pendle Borough Council,Engineering & Special Projects,Capital Costs,Capital : Salaries,CD13,G2 RECRUITMENT SOLUTIONS,A0091827,24/11/2022,HED0329990,1332,N,,N,N
Pendle Borough Council,Engineering & Special Projects,Capital Costs,Ren Grant : 1996 Act,CH22,CLEGG CONSTRUCTION UK,A0091885,17/11/2022,HED0329807,6700,N,,N,N
Pendle Borough Council,Engineering & Special Projects,Capital Costs,Ren Grant : 1996 Act,CH22,CLEGG CONSTRUCTION UK,A0091885,17/11/2022,HED0329806,6881,N,,N,N
Pendle Borough Council,Engineering & Special Projects,Capital Costs,Ren Grant : 1996 Act,CH22,CLEGG CONSTRUCTION UK,A0091885,17/11/2022,HED0329810,7271,N,,N,N
Pendle Borough Council,Property Services,Premises Related Expense,Water & Sewerage,2501,BUSINESS STREAM,A0091916,17/11/2022,EST0329947,13.62,N,,N,N
Pendle Borough Council,Property Services,Premises Related Expense,Water & Sewerage,2501,BUSINESS STREAM,A0091916,24/11/2022,EST0330074,857.79,N,,N,N
Pendle Borough Council,Property Services,Premises Related Expense,Water & Sewerage,2501,BUSINESS STREAM,A0091916,24/11/2022,EST0330077,9,N,,N,N
Pendle Borough Council,Engineering & Special Projects,Capital Costs,Ren Grant : 1996 Act,CH22,DYNAMIC PLUMBING AND HEATING,A0091941,17/11/2022,HED0329812,14382,N,,N,N
Pendle Borough Council,Engineering & Special Projects,Capital Costs,Ren Grant : 1996 Act,CH22,DYNAMIC PLUMBING AND HEATING,A0091941,17/11/2022,HED0329813,14843,N,,N,N
Pendle Borough Council,Planning & Building Control,,Other Income : Non-VATable,9303,REDACT - PERSONAL DATA,A0091949,10/11/2022,PBC0329743,33.25,N,,N,N
Pendle Borough Council,Operational Services,,Stock : Purchases,PJ01,SMI GROUP UK,A0091999,03/11/2022,OPS4006616,-95.1,N,,N,N
Pendle Borough Council,Operational Services,,Stock : Purchases,PJ01,SMI GROUP UK,A0091999,03/11/2022,OPS4006615,-10.67,N,,N,N
Pendle Borough Council,Operational Services,,Stock : Purchases,PJ01,SMI GROUP UK,A0091999,03/11/2022,OPS0329525,55.6,N,,N,N
Pendle Borough Council,Operational Services,,Stock : Purchases,PJ01,SMI GROUP UK,A0091999,03/11/2022,OPS0329525,55.6,N,,N,N
Pendle Borough Council,Operational Services,,Stock : Purchases,PJ01,SMI GROUP UK,A0091999,03/11/2022,OPS0329528,60,N,,N,N
Pendle Borough Council,Operational Services,,Stock : Purchases,PJ01,SMI GROUP UK,A0091999,17/11/2022,OPS0329901,81,N,,N,N
Pendle Borough Council,Operational Services,,Stock : Purchases,PJ01,SMI GROUP UK,A0091999,03/11/2022,OPS0329527,85.26,N,,N,N
Pendle Borough Council,Operational Services,,Stock : Purchases,PJ01,SMI GROUP UK,A0091999,17/11/2022,OPS0329900,85.26,N,,N,N
Pendle Borough Council,Operational Services,,Stock : Purchases,PJ01,SMI GROUP UK,A0091999,17/11/2022,OPS0329901,85.26,N,,N,N
Pendle Borough Council,Operational Services,,Stock : Purchases,PJ01,SMI GROUP UK,A0091999,03/11/2022,OPS0329523,113.68,N,,N,N
Pendle Borough Council,Operational Services,,Stock : Purchases,PJ01,SMI GROUP UK,A0091999,03/11/2022,OPS0329526,113.68,N,,N,N
Pendle Borough Council,Operational Services,,Stock : Purchases,PJ01,SMI GROUP UK,A0091999,03/11/2022,OPS0329524,280.6,N,,N,N
Pendle Borough Council,Operational Services,,Stock : Purchases,PJ01,SMI GROUP UK,A0091999,03/11/2022,OPS0329528,398.41,N,,N,N
Pendle Borough Council,Engineering & Special Projects,Premises Related Expense,Grounds : R & M : Day to Day : Routine,2101,MONK OF COLNE LTD,A0092137,24/11/2022,HED0330048,740.4,N,,N,N
Pendle Borough Council,Engineering & Special Projects,Premises Related Expense,Grounds : R & M : Day to Day : Routine,2101,T & F STEEL DESIGNS,A0092539,24/11/2022,HED0330046,336,N,,N,N
Pendle Borough Council,Financial Services,Agency Costs,Internal Audit Outsourced Contract,5304,LIVERPOOL UNIVERSITY HOSPITALS NHS FOUNDATIONTRUST,A0092555,10/11/2022,AAS4006627,-1755,N,,N,N
Pendle Borough Council,Financial Services,Agency Costs,Internal Audit Outsourced Contract,5304,LIVERPOOL UNIVERSITY HOSPITALS NHS FOUNDATIONTRUST,A0092555,10/11/2022,AAS0329794,1755,N,,N,N
Pendle Borough Council,Financial Services,Agency Costs,Internal Audit Outsourced Contract,5304,LIVERPOOL UNIVERSITY HOSPITALS NHS FOUNDATIONTRUST,A0092555,10/11/2022,AAS0329795,1755,N,,N,N
Pendle Borough Council,Financial Services,Agency Costs,Internal Audit Outsourced Contract,5304,LIVERPOOL UNIVERSITY HOSPITALS NHS FOUNDATIONTRUST,A0092555,10/11/2022,AAS0329787,18975,N,,N,N
Pendle Borough Council,Financial Services,Agency Costs,Internal Audit Outsourced Contract,5304,LIVERPOOL UNIVERSITY HOSPITALS NHS FOUNDATIONTRUST,A0092555,10/11/2022,AAS0329797,18975,N,,N,N
Pendle Borough Council,Engineering & Special Projects,Premises Related Expense,Bldgs : R & M : Abnormal,2002,BARROWFORD SAFE AND LOCK SERVICES LTD,A0092646,24/11/2022,HED0330029,70,N,,N,N
Pendle Borough Council,Engineering & Special Projects,Capital Costs,Ren Grant : 1996 Act,CH22,BLUEBELL NORTH WEST LIMITED,A0092759,17/11/2022,HED0329918,5407,N,,N,N
Pendle Borough Council,Engineering & Special Projects,,Other Income : Non-VATable,9303,PENDLE HIPPODROME THEATRE LTD,A0092890,17/11/2022,HED0329884,180,N,,N,N
Pendle Borough Council,Financial Services,Capital Costs,Capital: Design Fees,cd53,NORIKER CONSULTING ENGINEERS LTD,A0093227,24/11/2022,AAS0330112,960,N,,N,N
Pendle Borough Council,Engineering & Special Projects,Capital Costs,Capital : Payments,CD14,JOSHUA LOWNSBOROUGH,A0093702,17/11/2022,HED0329809,380,N,,N,N
Pendle Borough Council,Engineering & Special Projects,Capital Costs,Capital : Payments,CD14,JOSHUA LOWNSBOROUGH,A0093702,17/11/2022,HED0329804,1648,N,,N,N
Pendle Borough Council,Engineering & Special Projects,Capital Costs,Capital : Payments,CD14,JOSHUA LOWNSBOROUGH,A0093702,17/11/2022,HED0329811,2128,N,,N,N
Pendle Borough Council,Engineering & Special Projects,Capital Costs,Ren Grant : 1996 Act,CH22,JOSHUA LOWNSBOROUGH,A0093702,17/11/2022,HED0329808,5819,N,,N,N
Pendle Borough Council,Parks & Recreation Services,Transport Related Expense,Tprt : Repairs : General,3105,AMAZON PAYMENTS UK LIMITED,A0093876,24/11/2022,PCO0330019,134.85,N,,N,N
Pendle Borough Council,Parks & Recreation Services,Transport Related Expense,Tprt : Repairs : General,3105,AMAZON PAYMENTS UK LIMITED,A0093876,24/11/2022,PCO0329965,119.98,N,,N,N
Pendle Borough Council,Engineering & Special Projects,Capital Costs,Capital : Payments,CD14,ARTHUR PADGETT AUTHORISED PLUMBERS LTD,A0094019,17/11/2022,HED0329916,1648,N,,N,N
Pendle Borough Council,Parks & Recreation Services,Supplies and Services,Expenditure : Materials,0002,TURFIX PITCH SOLUTIONS,A0094206,17/11/2022,PCO0329876,350,N,,N,N
Pendle Borough Council,Parks & Recreation Services,Supplies and Services,Expenditure : Materials,0002,TURFIX PITCH SOLUTIONS,A0094206,17/11/2022,PCO0329876,1200,N,,N,N
Pendle Borough Council,Parks & Recreation Services,Premises Related Expense,Grounds : R & M : Day to Day : Routine,2101,TURFIX PITCH SOLUTIONS,A0094206,03/11/2022,PCO0329572,107.24,N,,N,N
Pendle Borough Council,Parks & Recreation Services,Transport Related Expense,Hire of Plant,3502,TURFIX PITCH SOLUTIONS,A0094206,17/11/2022,PCO0329875,1820,N,,N,N
Pendle Borough Council,Financial Services,Supplies and Services,Subscriptions & Donations,4706,EMAP PUBLISHING,A0094207,24/11/2022,AAS0330095,319,N,,N,N
Pendle Borough Council,Revenues Services,Supplies and Services,Consultants Fees,4401,MARSTON (HOLDINGS) LIMITED,A0094273,17/11/2022,TRE0329961,63.99,N,,N,N
Pendle Borough Council,Engineering & Special Projects,Capital Costs,Ren Grant : 1996 Act,CH22,SOUTHFIELD CONSTRUCTION,A0094294,17/11/2022,HED0329805,5289,N,,N,N
Pendle Borough Council,Planning & Building Control,Supplies and Services,EFM Materials,4004,EASYSPACE LIMITED,A0094308,10/11/2022,PBC0329712,50.6,N,,N,N
Pendle Borough Council,Engineering & Special Projects,Supplies and Services,Other Expenses,4705,WILLIAM SUGG & COMPANY LIMITED,A0094310,17/11/2022,HED0329929,1676.87,N,,N,N
Pendle Borough Council,Planning & Building Control,,Other Income : Non-VATable,9303,REDACT - PERSONAL DATA,A0094950,24/11/2022,PBC0330066,70.64,N,,N,N
Pendle Borough Council,Engineering & Special Projects,Supplies and Services,Other Expenses,4705,CATG LTD,A0095731,03/11/2022,HED0329521,738,N,,N,N
Pendle Borough Council,Parks & Recreation Services,Premises Related Expense,Grounds : R & M : Day to Day : Routine,2101,M W ENVIRONMENTAL,A0095862,17/11/2022,PCO0329889,37,N,,N,N
Pendle Borough Council,Parks & Recreation Services,Premises Related Expense,Grounds : R & M : Day to Day : Routine,2101,M W ENVIRONMENTAL,A0095862,17/11/2022,PCO0329889,200,N,,N,N
Pendle Borough Council,Information Services,Capital Costs,Capital : Payments,CD14,ZOHO CORPORATION LIMITED,A0096240,24/11/2022,ITS0330058,1050,N,,N,N
Pendle Borough Council,Property Services,Premises Related Expense,Electricity,2203,E.ON NEXT ENERGY LIMITED,A0096428,24/11/2022,EST0330080,4.59,N,,N,N
Pendle Borough Council,Property Services,Premises Related Expense,Electricity,2203,E.ON NEXT ENERGY LIMITED,A0096428,24/11/2022,EST0330081,17.52,N,,N,N
Pendle Borough Council,Property Services,Premises Related Expense,Electricity,2203,E.ON NEXT ENERGY LIMITED,A0096428,24/11/2022,EST0330082,20.58,N,,N,N
Pendle Borough Council,Property Services,Premises Related Expense,Electricity,2203,E.ON NEXT ENERGY LIMITED,A0096428,17/11/2022,EST0329956,43.59,N,,N,N
Pendle Borough Council,Property Services,Premises Related Expense,Electricity,2203,E.ON NEXT ENERGY LIMITED,A0096428,03/11/2022,EST0329590,65,N,,N,N
Pendle Borough Council,Property Services,Premises Related Expense,Electricity,2203,E.ON NEXT ENERGY LIMITED,A0096428,03/11/2022,EST0329590,885.69,N,,N,N
Pendle Borough Council,Property Services,Premises Related Expense,Electricity,2203,E.ON NEXT ENERGY LIMITED,A0096428,24/11/2022,EST4006632,-3.64,N,,N,N
Pendle Borough Council,Property Services,Premises Related Expense,Electricity,2203,E.ON NEXT ENERGY LIMITED,A0096428,24/11/2022,EST4006633,-3.64,N,,N,N
Pendle Borough Council,Property Services,Premises Related Expense,Electricity,2203,E.ON NEXT ENERGY LIMITED,A0096428,24/11/2022,EST0330086,3.64,N,,N,N
Pendle Borough Council,Property Services,Premises Related Expense,Electricity,2203,E.ON NEXT ENERGY LIMITED,A0096428,24/11/2022,EST0330087,3.64,N,,N,N
Pendle Borough Council,Property Services,Premises Related Expense,Electricity,2203,E.ON NEXT ENERGY LIMITED,A0096428,17/11/2022,EST0329954,4.2,N,,N,N
Pendle Borough Council,Property Services,Premises Related Expense,Electricity,2203,E.ON NEXT ENERGY LIMITED,A0096428,17/11/2022,EST0329955,4.2,N,,N,N
Pendle Borough Council,Property Services,Premises Related Expense,Electricity,2203,E.ON NEXT ENERGY LIMITED,A0096428,17/11/2022,EST0329957,4.2,N,,N,N
Pendle Borough Council,Property Services,Premises Related Expense,Electricity,2203,E.ON NEXT ENERGY LIMITED,A0096428,24/11/2022,EST0330075,6.42,N,,N,N
Pendle Borough Council,Operational Services,Supplies and Services,Other Expenses,4705,ABC CLEANING SERVICES (NORTH WEST) LIMITED,A0096473,03/11/2022,OPS0329546,6500,N,,N,N
Pendle Borough Council,Operational Services,Supplies and Services,Other Expenses,4705,ABC CLEANING SERVICES (NORTH WEST) LIMITED,A0096473,03/11/2022,OPS0329545,9000,N,,N,N
Pendle Borough Council,Parks & Recreation Services,Premises Related Expense,Bldgs : R & M : Day To Day,2001,JMB SERVICES,A0096485,24/11/2022,PCO0330032,150,N,,N,N
Pendle Borough Council,Parks & Recreation Services,Premises Related Expense,Grounds : R & M : Day to Day : Routine,2101,JMB SERVICES,A0096485,24/11/2022,PCO0330032,450,N,,N,N
Pendle Borough Council,Engineering & Special Projects,Supplies and Services,Other Expenses,4705,BMP GOODSHAW BRASS BAND,A0096502,24/11/2022,HED0329987,350,N,,N,N
Pendle Borough Council,Parks & Recreation Services,Premises Related Expense,Grounds : R & M : Day to Day : Routine,2101,BANNISTER HALL LIMITED,A0096507,17/11/2022,PCO0329892,35,N,,N,N
Pendle Borough Council,Parks & Recreation Services,Premises Related Expense,Grounds : R & M : Day to Day : Routine,2101,BANNISTER HALL LIMITED,A0096507,17/11/2022,PCO0329892,95,N,,N,N
Pendle Borough Council,Parks & Recreation Services,Premises Related Expense,Grounds : R & M : Day to Day : Routine,2101,BANNISTER HALL LIMITED,A0096507,17/11/2022,PCO0329892,184,N,,N,N
Pendle Borough Council,Parks & Recreation Services,Premises Related Expense,Grounds : R & M : Day to Day : Routine,2101,BANNISTER HALL LIMITED,A0096507,17/11/2022,PCO0329892,510,N,,N,N
Pendle Borough Council,Parks & Recreation Services,Premises Related Expense,Grounds : R & M : Day to Day : Routine,2101,BANNISTER HALL LIMITED,A0096507,17/11/2022,PCO0329892,595,N,,N,N
Pendle Borough Council,Engineering & Special Projects,,Fees Income : VATable,9202,INFOTRACK PROPERTY SERVICES,A0096508,17/11/2022,HED0329915,170,N,,N,N
Pendle Borough Council,Parks & Recreation Services,Premises Related Expense,Grounds : R & M : Day to Day : Routine,2101,HORNBECK LTD t/a LANDMARK,A0096544,24/11/2022,PCO0330017,653.68,N,,N,N
Pendle Borough Council,Financial Services,Supplies and Services,Subscriptions & Donations,4706,NOMINET UK,A0096546,17/11/2022,AAS0329977,765.94,N,,N,N
Pendle Borough Council,Financial Services,Supplies and Services,Consultants Fees,4401,MBSP CONSULTANCY LTD,A0096552,17/11/2022,AAS0329976,10200,N,,N,N
Pendle Borough Council,Planning & Building Control,,Other Income : Non-VATable,9303,REDACT - PERSONAL DATA,A0096624,24/11/2022,PBC0330068,49.87,N,,N,N
Pendle Borough Council,Planning & Building Control,,Other Income : Non-VATable,9303,REDACT - PERSONAL DATA,A0096685,17/11/2022,PBC0329933,49.88,N,,N,N
Pendle Borough Council,Information Services,Supplies and Services,Printing & Stationery,4301,BCN GROUP LTD,A0096766,24/11/2022,ITS0330055,10,N,,N,N
Pendle Borough Council,Information Services,Supplies and Services,Printing & Stationery,4301,BCN GROUP LTD,A0096766,24/11/2022,ITS0330060,33.99,N,,N,N
Pendle Borough Council,Information Services,Supplies and Services,Printing & Stationery,4301,BCN GROUP LTD,A0096766,24/11/2022,ITS0330055,95.96,N,,N,N
Pendle Borough Council,Engineering & Special Projects,Supplies and Services,Consultants Fees,4401,GROWTH LANCASHIRE LIMITED,A0096774,10/11/2022,HED0329664,843,N,,N,N
Pendle Borough Council,Engineering & Special Projects,Supplies and Services,Consultants Fees,4401,GROWTH LANCASHIRE LIMITED,A0096774,10/11/2022,HED0329665,2772.65,N,,N,N
Pendle Borough Council,Engineering & Special Projects,Capital Costs,Ren Grant : 1996 Act,CH22,INDEPENDENT ADAPTIONS,A0096780,03/11/2022,HED0329549,3683.86,N,,N,N
Pendle Borough Council,Financial Services,Supplies and Services,Grant Funding,4737,REDACT - PERSONAL DATA,A0096802,04/11/2022,AAS0329621,350,N,,N,N
Pendle Borough Council,Financial Services,Supplies and Services,Grant Funding,4737,REDACT - PERSONAL DATA,A0096803,04/11/2022,AAS0329613,350,N,,N,N
Pendle Borough Council,Financial Services,Supplies and Services,Grant Funding,4737,REDACT - PERSONAL DATA,A0096804,04/11/2022,AAS0329614,350,N,,N,N
Pendle Borough Council,Financial Services,Supplies and Services,Grant Funding,4737,REDACT - PERSONAL DATA,A0096805,04/11/2022,AAS0329615,350,N,,N,N
Pendle Borough Council,Financial Services,Supplies and Services,Grant Funding,4737,REDACT - PERSONAL DATA,A0096806,04/11/2022,AAS0329616,350,N,,N,N
Pendle Borough Council,Financial Services,Supplies and Services,Grant Funding,4737,REDACT - PERSONAL DATA,A0096808,04/11/2022,AAS0329620,350,N,,N,N
Pendle Borough Council,Financial Services,Supplies and Services,Grant Funding,4737,REDACT - PERSONAL DATA,A0096810,04/11/2022,AAS0329622,350,N,,N,N
Pendle Borough Council,Financial Services,Supplies and Services,Grant Funding,4737,REDACT - PERSONAL DATA,A0096811,04/11/2022,AAS0329623,350,N,,N,N
Pendle Borough Council,Financial Services,Supplies and Services,Grant Funding,4737,REDACT - PERSONAL DATA,A0096812,04/11/2022,AAS0329625,350,N,,N,N
Pendle Borough Council,Financial Services,Supplies and Services,Grant Funding,4737,REDACT - PERSONAL DATA,A0096819,04/11/2022,AAS0329624,350,N,,N,N
Pendle Borough Council,Financial Services,Supplies and Services,Grant Funding,4737,REDACT - PERSONAL DATA,A0096823,04/11/2022,AAS0329618,350,N,,N,N
Pendle Borough Council,Operational Services,Supplies and Services,Sub-Contractors,4007,WHITLEY BROOK PET CREMATORIUM,A0096827,10/11/2022,OPS0329649,75,N,,N,N
Pendle Borough Council,Financial Services,Supplies and Services,Grant Funding,4737,REDACT - PERSONAL DATA,A0096834,04/11/2022,AAS0329617,350,N,,N,N
Pendle Borough Council,Operational Services,,Stock : Purchases,PJ01,C R SAFETY AND CONSUMABLES SUPPLIES LTD,A0096836,10/11/2022,OPS0329678,133,N,,N,N
Pendle Borough Council,Financial Services,Supplies and Services,Other Expenses,4705,POST OFFICE LTD,A0096844,17/11/2022,AAS0329978,42,N,,N,N
Pendle Borough Council,Engineering & Special Projects,Capital Costs,Capital : Payments,CD14,ECOLOGY SERVICES LTD,A0096854,10/11/2022,HED0329729,110,N,,N,N
Pendle Borough Council,Engineering & Special Projects,Capital Costs,Capital : Payments,CD14,ECOLOGY SERVICES LTD,A0096854,10/11/2022,HED0329728,3435,N,,N,N
Pendle Borough Council,Engineering & Special Projects,Capital Costs,Capital : Payments,CD14,MABEY HIRE,A0096855,03/11/2022,HED0329605,1801,N,,N,N
Pendle Borough Council,Financial Services,Supplies and Services,Grant Funding,4737,REDACT - PERSONAL DATA,A0096858,04/11/2022,AAS0329626,350,N,,N,N
Pendle Borough Council,Financial Services,Supplies and Services,Grant Funding,4737,REDACT - PERSONAL DATA,A0096863,04/11/2022,AAS0329619,350,N,,N,N
Pendle Borough Council,Parks & Recreation Services,Premises Related Expense,Bldgs : R & M : Day To Day,2001,REDACT - PERSONAL DATA,A0096864,17/11/2022,PCO0329891,400,N,,N,N
Pendle Borough Council,Financial Services,Supplies and Services,Grant Funding,4737,REDACT - PERSONAL DATA,A0096866,04/11/2022,AAS0329628,350,N,,N,N
Pendle Borough Council,Financial Services,Supplies and Services,Grant Funding,4737,REDACT - PERSONAL DATA,A0096867,04/11/2022,AAS0329627,350,N,,N,N
Pendle Borough Council,Financial Services,Supplies and Services,Grant Funding,4737,REDACT - PERSONAL DATA,A0096872,04/11/2022,AAS0329629,350,N,,N,N
Pendle Borough Council,Parks & Recreation Services,Supplies and Services,EFM : Other Equipment,4003,UP TO SPEED TRAINNG,A0096883,24/11/2022,PCO0329975,810,N,,N,N
Pendle Borough Council,Parks & Recreation Services,Supplies and Services,EFM : Other Equipment,4003,UP TO SPEED TRAINNG,A0096883,24/11/2022,PCO0329974,900,N,,N,N
Pendle Borough Council,Planning & Building Control,,Other Income : Non-VATable,9303,REDACT - PERSONAL DATA,A0096887,24/11/2022,PBC0330065,33.25,N,,N,N
Pendle Borough Council,Financial Services,Supplies and Services,Grant Funding,4737,REDACT - PERSONAL DATA,A0096890,04/11/2022,AAS0329630,350,N,,N,N
Pendle Borough Council,Financial Services,Supplies and Services,Grant Funding,4737,REDACT - PERSONAL DATA,A0096893,04/11/2022,AAS0329631,350,N,,N,N
Pendle Borough Council,Parks & Recreation Services,Premises Related Expense,Grounds : R & M : Day to Day : Routine,2101,WAYNE COLE T/A S & W PREMIUM LANDSCAPING,A0096903,10/11/2022,PCO0329671,380,N,,N,N
Pendle Borough Council,Parks & Recreation Services,Premises Related Expense,Grounds : Vandalism Repairs,2102,WAYNE COLE T/A S & W PREMIUM LANDSCAPING,A0096903,10/11/2022,PCO0329671,157,N,,N,N
Pendle Borough Council,Financial Services,Supplies and Services,Grant Funding,4737,REDACT - PERSONAL DATA,A0096910,04/11/2022,AAS0329637,350,N,,N,N
Pendle Borough Council,Financial Services,Supplies and Services,Grant Funding,4737,REDACT - PERSONAL DATA,A0096910,04/11/2022,AAS0329638,350,N,,N,N
Pendle Borough Council,Financial Services,Supplies and Services,Grant Funding,4737,REDACT - PERSONAL DATA,A0096910,04/11/2022,AAS0329639,350,N,,N,N
Pendle Borough Council,Financial Services,Supplies and Services,Grant Funding,4737,REDACT - PERSONAL DATA,A0096910,04/11/2022,AAS0329640,350,N,,N,N
Pendle Borough Council,Financial Services,Supplies and Services,Grant Funding,4737,REDACT - PERSONAL DATA,A0096910,04/11/2022,AAS0329641,350,N,,N,N
Pendle Borough Council,Financial Services,Supplies and Services,Grant Funding,4737,REDACT - PERSONAL DATA,A0096911,04/11/2022,AAS0329642,350,N,,N,N
Pendle Borough Council,Financial Services,Supplies and Services,Grant Funding,4737,REDACT - PERSONAL DATA,A0096911,04/11/2022,AAS0329643,350,N,,N,N
Pendle Borough Council,Financial Services,Supplies and Services,Grant Funding,4737,REDACT - PERSONAL DATA,A0096911,04/11/2022,AAS0329644,350,N,,N,N
Pendle Borough Council,Financial Services,Supplies and Services,Grant Funding,4737,REDACT - PERSONAL DATA,A0096912,04/11/2022,AAS0329632,350,N,,N,N
Pendle Borough Council,Financial Services,Supplies and Services,Grant Funding,4737,REDACT - PERSONAL DATA,A0096912,04/11/2022,AAS0329633,350,N,,N,N
Pendle Borough Council,Financial Services,Supplies and Services,Grant Funding,4737,REDACT - PERSONAL DATA,A0096912,04/11/2022,AAS0329634,350,N,,N,N
Pendle Borough Council,Financial Services,Supplies and Services,Grant Funding,4737,REDACT - PERSONAL DATA,A0096912,04/11/2022,AAS0329635,350,N,,N,N
Pendle Borough Council,Financial Services,Supplies and Services,Grant Funding,4737,REDACT - PERSONAL DATA,A0096912,04/11/2022,AAS0329636,350,N,,N,N
Pendle Borough Council,Planning & Building Control,,Other Income : Non-VATable,9303,REDACT - PERSONAL DATA,A0096913,10/11/2022,PBC0329742,261.55,N,,N,N
Pendle Borough Council,Financial Services,Supplies and Services,Grant Funding,4737,REDACT - PERSONAL DATA,A0096916,04/11/2022,AAS0329645,350,N,,N,N
Pendle Borough Council,Financial Services,Supplies and Services,Grant Funding,4737,REDACT - PERSONAL DATA,A0096916,04/11/2022,AAS0329646,350,N,,N,N
Pendle Borough Council,Financial Services,Supplies and Services,Grant Funding,4737,REDACT - PERSONAL DATA,A0096916,04/11/2022,AAS0329647,350,N,,N,N
Pendle Borough Council,Financial Services,Supplies and Services,Grant Funding,4737,REDACT - PERSONAL DATA,A0096916,04/11/2022,AAS0329648,350,N,,N,N
Pendle Borough Council,Engineering & Special Projects,Capital Costs,Capital : Payments,CD14,LITTLE LION RESEARCH LTD,A0096917,10/11/2022,HED0329731,4670,N,,N,N
Pendle Borough Council,Engineering & Special Projects,Capital Costs,Capital : Payments,CD14,LITTLE LION RESEARCH LTD,A0096917,10/11/2022,HED0329730,4545,N,,N,N
Pendle Borough Council,Engineering & Special Projects,Capital Costs,Capital : Payments,CD14,ALTHON LTD,A0096918,17/11/2022,HED0329930,13214.5,N,,N,N
Pendle Borough Council,Engineering & Special Projects,,Other Income : Non-VATable,9303,BLACK LANE ENDS TAVERN,A0096919,10/11/2022,HED0329708,180,N,,N,N
Pendle Borough Council,Financial Services,Supplies and Services,Grant Funding,4737,REDACT - PERSONAL DATA,A0096921,24/11/2022,AAS0330099,90,N,,N,N
Pendle Borough Council,Parks & Recreation Services,Premises Related Expense,Grounds : R & M : Day to Day : Routine,2101,J HODKINSON FENCING CONTRACTOR,A0096922,24/11/2022,PCO0329973,750,N,,N,N
Pendle Borough Council,Parks & Recreation Services,Premises Related Expense,Grounds : R & M : Day to Day : Routine,2101,J HODKINSON FENCING CONTRACTOR,A0096922,24/11/2022,PCO0329973,3460,N,,N,N
Pendle Borough Council,Financial Services,Supplies and Services,Consultants Fees,4401,"KNIGHT, KAVANAGH & PAGE LTD",A0096924,17/11/2022,AAS0329868,7470,N,,N,N
Pendle Borough Council,Financial Services,Supplies and Services,Grant Funding,4737,REDACT - PERSONAL DATA,A0096927,24/11/2022,AAS0330100,90,N,,N,N
Pendle Borough Council,Financial Services,Supplies and Services,EFM : Office and computer equipment,4002,109 INTERIORS LTD,A0096931,24/11/2022,AAS0330097,363.38,N,,N,N
